Workbook

Sheet Table 1 Clinical data
A1: ID | B1: Country of origin | C1: Age of Patient* | D1: Infertility in family | E1: Comment on infertility in family | F1: Genetic abnormalities in family | G1: Comment on genetic abnormalities in family | H1: Urological history | I1: Medical history | J1: Testicular volume left (cc) | K1: Testicular volume right (cc) | L1: Inhibin B (ng/L) | M1: FSH (U/L) | N1: Normal scrotal ultrasound | O1: Semen pH | P1: Semen volume (mL) | Q1: Semen concentration (x106/mL) | R1: % progressively motile | S1: VCM | T1: % abnormal morfology | U1: Conclusion semen analysis | V1: Probable cause azoospermia
A2: Proband_001 | B2: Netherlands | C2: 35 | D2: Yes | E2: Mother exposed to Diethylstilbestrol (DES) use and had 3 miscarriage and 1 stillborn | F2: No | H2: Cryptorchidism with orchidectomy right | I2: None | J2: 8 | K2: Absent | L2: 19 | M2: 23 | N2: Yes | O2: 7.7 | P2: 0.5 | Q2: 0 | R2: ND | S2: ND | T2: ND | U2: Azoospermia | V2: NOA
A3: Proband_002 | B3: Netherlands | C3: 36 | D3: No | F3: No | H3: Cryptorchidism bilateral with orchidopexy | I3: None | J3: 12 | K3: 12 | L3: 22 | M3: 11 | N3: No: inguinal hernia bilateral | O3: 7.8 | P3: 3.6 | Q3: 0 | R3: ND | S3: ND | T3: ND | U3: Azoospermia | V3: NOA
A4: Proband_003 | B4: Netherlands | C4: 39 | D4: No | F4: No | H4: Orchidectomy right, orchitis right, coiling varicocele | I4: Meningitis at age 3, bilateral inguinal hernia | J4: 15 | K4: 10 | L4: 21.3 | M4: 15 | N4: Yes | O4: 7.5 | P4: 4 | Q4: <0.1 | R4: ND | S4: ND | T4: ND | U4: Extreme oligozoospermia
A5: Proband_004 | B5: Netherlands | C5: 35 | D5: No | F5: No | H5: None | I5: None | J5: 5 | K5: 5 | L5: NA | M5: 16.5 | N5: No: varicocele left | O5: 7.7 | P5: 4.2 | Q5: 0 | R5: ND | S5: ND | T5: ND | U5: Azoospermia | V5: NOA
A6: Proband_005 | B6: Netherlands | C6: 35 | D6: Yes | E6: Brother from grandfather had male factor infertility | F6: No | H6: Varicocele right; retrograde ejaculation | I6: None | J6: 8 | K6: 8 | L6: 28.4 | M6: 25 | N6: No: epididymis cyst | O6: 7.7 | P6: 0.6 | Q6: 0 | R6: ND | S6: ND | T6: ND | U6: Azoospermia | V6: NOA
A7: Proband_006 | B7: Netherlands | C7: 30 | D7: Yes | E7: Parents had difficulties conceiving; age gap of 5 years between patient and his brother, no fertility treatment necessary | F7: Yes | G7: Two sisters of mother are known with intellectual disability | H7: Cryptorchidism with orchidopexy bilateral; hernia inguinalis bilateral; hydrocele | I7: None | J7: 20 | K7: 15 | L7: 33.4 | M7: 11 | N7: No: varicocele left | O7: 7.8 | P7: 1.7 | Q7: 0 | R7: ND | S7: ND | T7: ND | U7: Azoospermia | V7: NOA
A8: Proband_007 | B8: Netherlands | C8: 41 | D8: No | E8: Mother had 2 miscarriages | F8: No | H8: None | I8: None | J8: 8 | K8: 8 | L8: 13 | M8: 25 | N8: Yes | O8: 7.5 | P8: 1.3 | Q8: 0 | R8: ND | S8: ND | T8: ND | U8: Azoospermia | V8: NOA
A9: Proband_008 | B9: Netherlands | C9: 26 | D9: No | F9: No | H9: None | I9: None | J9: 15 | K9: 15 | L9: 24.6 | M9: 6.3 | N9: No: microcalcifications bilateral | O9: 7.1 | P9: 3.4 | Q9: 0 | R9: ND | S9: ND | T9: ND | U9: Azoospermia | V9: NOA
A10: Proband_009 | B10: Netherlands | C10: 35 | D10: No | F10: No | H10: Torsio testis unilateral; orchidopexy unilateral | I10: None | J10: 10 | K10: 12 | L10: 11 | M10: 25 | N10: Yes | O10: 7.5 | P10: 3.9 | Q10: 0 | R10: ND | S10: ND | T10: ND | U10: Azoospermia | V10: NOA
A11: Proband_010 | B11: Netherlands | C11: 37 | D11: Yes | E11: Parents had a hard time conceiving, mother had 1 miscarriage | F11: No | H11: None | I11: None | J11: 14 | K11: 12 | L11: 15.1 | M11: 16 | N11: Yes | O11: 7.5 | P11: 8 | Q11: 0 | R11: ND | S11: ND | T11: ND | U11: Azoospermia | V11: NOA
A12: Proband_011 | B12: Netherlands | C12: 41 | D12: No | F12: No | H12: Cryptorchism unilateral with orchidopexy twice | I12: Normocytair anemia, parotitis | J12: 14 | K12: 14 | L12: 10.7 | M12: 31 | N12: No: inhomogenous lesion left | O12: 7.7 | P12: 3.5 | Q12: 0 | R12: ND | S12: ND | T12: ND | U12: Azoospermia | V12: NOA
A13: Proband_012 | B13: Netherlands | C13: 31 | D13: No | F13: Possible | G13: 1 stillborn sibling, cause unknown | H13: Absence of vas deferens | I13: None | J13: 20 | K13: 20 | L13: ND | M13: 3 | N13: Yes | O13: 7 | P13: 1 | Q13: <0.1 | R13: ND | S13: ND | T13: ND | U13: Extreme oligozoospermia
A14: Proband_013 | B14: Netherlands | C14: 28 | D14: Yes | E14: Brother has male factor infertility, also known with cryptorchidism and orchidopexy | F14: No | H14: Cryptorchidism with orchidopexy right | I14: None | J14: 12 | K14: 12 | L14: 20.3 | M14: 11 | N14: Yes | O14: 7.3 | P14: 4.5 | Q14: 0 | R14: ND | S14: ND | T14: ND | U14: Azoospermia | V14: NOA
A15: Proband_014 | B15: Netherlands | C15: 30 | D15: No | E15: Mother had 1 or 2 miscarriages | F15: No | H15: None | I15: None | J15: 20 | K15: 22 | L15: 13 | M15: 16 | N15: No: microcalcifications left | O15: 7.5 | P15: 1.9 | Q15: 0 | R15: ND | S15: ND | T15: ND | U15: Azoospermia | V15: NOA
A16: Proband_015 | B16: Netherlands | C16: 29 | D16: No | F16: No | H16: Cryptorchidism bilateral with orchidopexy | I16: None | J16: 16 | K16: 15 | L16: 26.6 | M16: 15 | N16: No: inguinal hernia left | O16: 7.5 | P16: 7.7 | Q16: 0 | R16: ND | S16: ND | T16: ND | U16: Azoospermia | V16: NOA
A17: Proband_016 | B17: Netherlands | C17: 36 | D17: Unknown | F17: Unknown | H17: None | I17: None | J17: 15 | K17: 15 | L17: 20.6 | M17: 25 | N17: Yes | O17: 7.5 | P17: 4.3 | Q17: 0 | R17: ND | S17: ND | T17: ND | U17: Azoospermia | V17: NOA
A18: Proband_017 | B18: Netherlands | C18: 35 | D18: No | F18: No | H18: None | I18: None | J18: 18 | K18: 18 | L18: 35 | M18: 26 | N18: Yes | O18: 7.5 | P18: 4.1 | Q18: 0 | R18: ND | S18: ND | T18: ND | U18: Azoospermia | V18: NOA
A19: Proband_018 | B19: Netherlands | C19: 32 | D19: No | F19: No | H19: None | I19: None | J19: 20 | K19: 20 | L19: 96.7 | M19: 12 | N19: No: varicocele left; microcalcifications right | O19: 7.5 | P19: 3.4 | Q19: <0.1 | R19: ND | S19: ND | T19: ND | U19: Extreme oligozoospermia
A20: Proband_019 | B20: Netherlands | C20: 31 | D20: Yes | E20: Male cousin has infertility, exact cause unknown | F20: No | H20: Cryptorchidism bilateral with orchidopexy | I20: Congenital muscle dystrophy | J20: 14 | K20: 14 | L20: 13.9 | M20: 22 | N20: No: atrophy/shrunk testis bilateral | O20: 7.7 | P20: 1.3 | Q20: 0 | R20: ND | S20: ND | T20: ND | U20: Azoospermia | V20: NOA
A21: Proband_020 | B21: Netherlands | C21: 31 | D21: No | F21: No | H21: None | I21: None | J21: 9 | K21: 9 | L21: 18 | M21: 28 | N21: No: cyst right testis | O21: Unknown | P21: Unknown | Q21: 0 | R21: ND | S21: ND | T21: ND | U21: Azoospermia | V21: NOA
A22: Proband_021 | B22: Netherlands | C22: 38 | D22: Yes | E22: Brother of mother conceived a twin with IVF | F22: No | H22: None | I22: None | J22: 15 | K22: 12 | L22: 26.6 | M22: 25.1 | N22: No: varicocele left; microcalcifications right | O22: 7.7 | P22: 4.3 | Q22: 0 | R22: ND | S22: ND | T22: ND | U22: Azoospermia | V22: NOA
A23: Proband_022 | B23: Netherlands | C23: 38 | D23: Unknown | F23: Unknown | H23: None | I23: None | J23: 18 | K23: 18 | L23: 19 | M23: 14 | N23: NA | O23: 7.5 | P23: 4.7 | Q23: 0 | R23: ND | S23: ND | T23: ND | U23: Azoospermia | V23: NOA
A24: Proband_023 | B24: Netherlands | C24: 29 | D24: No | F24: No | H24: Testis carcinoma; orchidectomy right | I24: None | J24: 20 | K24: Absent | L24: 31 | M24: 3.4 | N24: Yes (1 side left) | O24: 7.3 | P24: 3.1 | Q24: 0 | R24: ND | S24: ND | T24: ND | U24: Azoospermia | V24: NOA
A25: Proband_024 | B25: Netherlands | C25: 30 | D25: No | F25: No | H25: Cryptorchidism with orchidopexy left; varicocele unilateral | I25: None | J25: 8 | K25: 10 | L25: 43 | M25: 31 | N25: No: varicocele left | O25: 7.5 | P25: 5.5 | Q25: 0 | R25: ND | S25: ND | T25: ND | U25: Azoospermia | V25: NOA
A26: Proband_025 | B26: Netherlands | C26: 31 | D26: No | F26: No | H26: Cryptorchidism bilateral with orchidopexy | I26: None | J26: 13 | K26: 15 | L26: 9 | M26: 33 | N26: No: cyst testis left, cyst epididymis right | O26: 7.3 | P26: 2.8 | Q26: 0 | R26: ND | S26: ND | T26: ND | U26: Azoospermia | V26: NOA
A27: Proband_026 | B27: Netherlands | C27: 32 | D27: No | F27: No | H27: Cryptorchidism bilateral with orchidopexy | I27: None | J27: 6 | K27: 5 | L27: 24 | M27: 8.7 | N27: No: varicocele left | O27: 7.5 | P27: 1.5 | Q27: 0 | R27: ND | S27: ND | T27: ND | U27: Azoospermia | V27: NOA
A28: Proband_027 | B28: Netherlands | C28: 34 | D28: No | F28: Yes | G28: One cousin with intellectual disability | H28: Cryptorchidism with orchidopexy unilateral; hydrocele unilateral; atrophic testis | I28: None | J28: 25 | K28: Not palpable | L28: 133 | M28: 3.1 | N28: No: rough calcifications left | O28: 7.7 | P28: 2 | Q28: 0 | R28: ND | S28: ND | T28: ND | U28: Azoospermia | V28: NOA
A29: Proband_028 | B29: Netherlands | C29: 39 | D29: Yes | E29: Brother with fertility problems, also on fathers side of the family | F29: No | H29: None | I29: None | J29: 15 | K29: 13 | L29: NA | M29: 11 | N29: No: inhomogenous lesions bilateral | O29: Unknown | P29: Unknown | Q29: Unknown | R29: ND | S29: ND | T29: ND | U29: Extreme oligozoospermia
A30: Proband_029 | B30: Netherlands | C30: 32 | D30: Yes | E30: Parents had difficulties conceiving, several miscarriages. A brother of mother has children but is known with male factor infertility | F30: No | H30: None | I30: None | J30: 10 | K30: 12 | L30: 45.8 | M30: 9.2 | N30: No: microcalcifications left | O30: 7.2 | P30: 4.4 | Q30: 0 | R30: ND | S30: ND | T30: ND | U30: Azoospermia | V30: NOA
A31: Proband_030 | B31: Netherlands | C31: 44 | D31: No | F31: Unknown | H31: None | I31: None | J31: 25 | K31: 15 | L31: 50 | M31: 13 | N31: No: varicocele bilateral | O31: 7.6 | P31: 4.5 | Q31: 0 | R31: ND | S31: ND | T31: ND | U31: Extreme oligozoospermia
A32: Proband_031 | B32: Netherlands | C32: 29 | D32: No | F32: No | H32: Inguinal hernia bilteral | I32: None | J32: 15 | K32: 18 | L32: 25 | M32: Unknown | N32: No: indefinable tumour left, epididymis cyst right | O32: 7.7 | P32: 2.9 | Q32: 0 | R32: ND | S32: ND | T32: ND | U32: Azoospermia | V32: NOA
A33: Proband_032 | B33: Netherlands | C33: 27 | D33: No | F33: No | H33: None | I33: None | J33: 10 | K33: 10 | L33: 22.5 | M33: 16 | N33: No: varicocele left, microcalcifactions right | O33: 7.5 | P33: 6.1 | Q33: 0 | R33: ND | S33: ND | T33: ND | U33: Azoospermia | V33: NOA
A34: Proband_033 | B34: Netherlands | C34: 31 | D34: No | F34: No | H34: None | I34: None | J34: 18 | K34: 18 | L34: 135 | M34: 23.8 | N34: No: microcalcifications left | O34: 7.6 | P34: 3.8 | Q34: 0 | R34: ND | S34: ND | T34: ND | U34: Azoospermia | V34: NOA
A35: Proband_034 | B35: Unknown | C35: 31 | D35: No | F35: No | H35: None | I35: None | J35: 15 | K35: 20 | L35: 26 | M35: 11.9 | N35: No: Indefinable tumor left | O35: 7.5 | P35: 1 | Q35: 0 | R35: ND | S35: ND | T35: ND | U35: Azoospermia | V35: NOA
A36: Proband_035 | B36: Netherlands | C36: 27 | D36: No | F36: No | H36: Inguinal hernia; cryptorchidism with orchidopexy bilateral | I36: None | J36: 15 | K36: 15 | L36: 43 | M36: 11 | N36: NA | O36: 7.5 | P36: 2.1 | Q36: 0 | R36: ND | S36: ND | T36: ND | U36: Azoospermia | V36: NOA
A37: Proband_036 | B37: Netherlands | C37: 36 | D37: No | E37: Parents had 4 miscarriages | F37: No | H37: None | I37: None | J37: 14 | K37: 10 | L37: 15.7 | M37: 28.2 | N37: No: varicocele left, cyst right | O37: 7.7 | P37: 7.2 | Q37: 0 | R37: ND | S37: ND | T37: ND | U37: Azoospermia | V37: NOA
A38: Proband_037 | B38: Netherlands | C38: 32 | D38: No | F38: No | H38: Cryptorchidism unilateral; orchidectomy due to non-seminoma | I38: None | J38: Absent | K38: 15 | L38: ND | M38: 19 | N38: Yes (1 side left) | O38: 7.6 | P38: 3.3 | Q38: 0 | R38: ND | S38: ND | T38: ND | U38: Azoospermia | V38: NOA
A39: Proband_038 | B39: Netherlands | C39: 29 | D39: No | F39: No | H39: Cryptorchidism bilateral with orchidpexy | I39: None | J39: 18 | K39: 18 | L39: 12 | M39: 27.1 | N39: Yes | O39: 8 | P39: 1.7 | Q39: 0 | R39: ND | S39: ND | T39: ND | U39: Azoospermia | V39: NOA
A40: Proband_039 | B40: Netherlands | C40: 30 | D40: Yes | E40: Several uncles and cousins from mothers side of the familie with male factor infertility | F40: No | H40: None | I40: None | J40: 12 | K40: 10 | L40: 13.4 | M40: 14.9 | N40: No: epididymis cyst left | O40: 7.6 | P40: 1.6 | Q40: 0 | R40: ND | S40: ND | T40: ND | U40: Azoospermia | V40: NOA
A41: Proband_040 | B41: Netherlands | C41: 36 | D41: No | F41: No | H41: Cryptorchism unilateral with orchidopexy | I41: None | J41: 6 | K41: 6 | L41: 26 | M41: 37 | N41: No: varicocele left | O41: 7.7 | P41: 2.9 | Q41: 0 | R41: ND | S41: ND | T41: ND | U41: Azoospermia | V41: NOA
A42: Proband_041 | B42: Netherlands | C42: 35 | D42: No | F42: No | H42: Inguinal hernia unilateral | I42: None | J42: 20 | K42: 15 | L42: 109 | M42: 5.2 | N42: No: indefinable tumour bilateral | O42: 7.7 | P42: 1.9 | Q42: 0 | R42: ND | S42: ND | T42: ND | U42: Azoospermia | V42: NOA
A43: Proband_042 | B43: Netherlands | C43: 33 | D43: No | F43: Yes | G43: Cousin and niece with cystic fibrosis | H43: None | I43: None | J43: 10 | K43: 10 | L43: 10.3 | M43: 28 | N43: No: varicocele left | O43: 7.5 | P43: 9 | Q43: 0 | R43: ND | S43: ND | T43: ND | U43: Azoospermia | V43: NOA
A44: Proband_043 | B44: Netherlands | C44: 37 | D44: No | F44: No | H44: None | I44: None | J44: 12 | K44: 15 | L44: NA | M44: 17 | N44: Yes | O44: 7.5 | P44: 6 | Q44: 0 | R44: ND | S44: ND | T44: ND | U44: Azoospermia | V44: NOA
A45: Proband_044 | B45: Netherlands | C45: 37 | D45: No | F45: No | H45: None | I45: None | J45: 10 | K45: 10 | L45: NA | M45: 7.4 | N45: NA | O45: Unknown | P45: Unknown | Q45: Unknown | R45: ND | S45: ND | T45: ND | U45: Azoospermia | V45: NOA
A46: Proband_045 | B46: Netherlands | C46: 32 | D46: No | F46: No | H46: None | I46: None | J46: 15 | K46: 15 | L46: 16 | M46: 23 | N46: NA | O46: Unknown | P46: Unknown | Q46: 0 | R46: ND | S46: ND | T46: ND | U46: Azoospermia | V46: NOA
A47: Proband_046 | B47: Netherlands | C47: 31 | D47: No | F47: No | H47: Cryptorchidism bilateral with orhidopexy ; inguinal hernia unilateral | I47: None | J47: Not palpable | K47: 20 | L47: 74.9 | M47: 13 | N47: No: varicocele right | O47: 7.5 | P47: 3 | Q47: 0 | R47: ND | S47: ND | T47: ND | U47: Azoospermia | V47: NOA
A48: Proband_047 | B48: Netherlands | C48: 40 | D48: No | F48: No | H48: None | I48: None | J48: 13 | K48: 13 | L48: 21.7 | M48: 21 | N48: No: varicocele left | O48: 7.5 | P48: 1 | Q48: 0 | R48: ND | S48: ND | T48: ND | U48: Azoospermia | V48: NOA
A49: Proband_048 | B49: Netherlands | C49: 32 | D49: Yes | E49: Brother underwent ICSI treatment 5 times, unsuccessful | F49: No | H49: None | I49: None | J49: 20 | K49: 20 | L49: ND | M49: 26 | N49: Yes | O49: 8.3 | P49: 4.8 | Q49: <0.1 | R49: ND | S49: ND | T49: ND | U49: Extreme oligozoospermia
A50: Proband_049 | B50: Netherlands | C50: 20 | D50: No | F50: No | H50: Cryptorchidism bilateral with orchidopexy; hydrocele unilateral | I50: None | J50: 15 | K50: 1 | L50: 18.8 | M50: 16 | N50: Yes | O50: 7.7 | P50: 1.7 | Q50: 0 | R50: ND | S50: ND | T50: ND | U50: Azoospermia | V50: NOA
A51: Proband_050 | B51: Netherlands | C51: 26 | D51: No | F51: No | H51: None | I51: None | J51: 15 | K51: 15 | L51: 82 | M51: 10 | N51: No: varicocele left, cyst right | O51: 7.7 | P51: 3.8 | Q51: 0.1 | R51: ND | S51: ND | T51: ND | U51: Extreme oligozoospermia
A52: Proband_051 | B52: Netherlands | C52: 27 | D52: Yes | E52: Yes uncle and aunt could not conceive, they adopted children, unknown cause | F52: No | H52: Torsio testis unilateral | I52: None | J52: Absent | K52: 12 | L52: 46.3 | M52: 11 | N52: No: atrophy/shrunk testis left | O52: 8 | P52: 2.1 | Q52: <0.1 | R52: ND | S52: ND | T52: ND | U52: Extreme oligozoospermia
A53: Proband_052 | B53: Netherlands | C53: 28 | D53: Yes | E53: Parents had difficulties conceiving, no fertility treatment | F53: No | H53: Cryptorchidism bilateral with orchidopexy | I53: None | J53: 15 | K53: 15 | L53: 76.9 | M53: 8.2 | N53: Yes | O53: 7.7 | P53: 1.9 | Q53: 1.7 | R53: 30 | S53: 0.969 | T53: 99 | U53: Severe oligoasthenoteratozoospermia
A54: Proband_053 | B54: Netherlands | C54: 30 | D54: No | F54: No | H54: None | I54: None | J54: 12 | K54: 12 | L54: 53.85 | M54: 10 | N54: NA | O54: 7.7 | P54: 3.3 | Q54: <0.1 | R54: ND | S54: ND | T54: ND | U54: Extreme oligozoospermia
A55: Proband_054 | B55: Netherlands | C55: 30 | D55: Yes | E55: Father and brother also known with cryptorchidism | F55: No | H55: Cryptorchidism bilateral with orchidopexy | I55: None | J55: 10 | K55: 10 | L55: 46.87 | M55: 15 | N55: No: hydrocele right | O55: 7.5 | P55: 5 | Q55: <0.1 | R55: ND | S55: ND | T55: ND | U55: Extreme oligozoospermia
A56: Proband_055 | B56: Netherlands | C56: 30 | D56: No | E56: Brother and partner had difficulties conceiving and several miscarriages, female factor infertility | F56: No | H56: None | I56: None | J56: 15 | K56: 15 | L56: 199 | M56: 3 | N56: No: microcalcifications bilateral | O56: 7.5 | P56: 2.8 | Q56: 0 | R56: ND | S56: ND | T56: ND | U56: Azoospermia | V56: Unclear OA or NOA
A57: Proband_056 | B57: Netherlands | C57: 27 | D57: No | F57: No | H57: None | I57: None | J57: 8 | K57: 10 | L57: 45 | M57: 19 | N57: Yes | O57: 7.5 | P57: 5.2 | Q57: 0 | R57: ND | S57: ND | T57: ND | U57: Azoospermia | V57: NOA
A58: Proband_057 | B58: Netherlands | C58: 25 | D58: No | F58: No | H58: None | I58: None | J58: 15 | K58: 12 | L58: 78 | M58: 21 | N58: No: varicocele left | O58: 7.7 | P58: 3 | Q58: <0.1 | R58: ND | S58: ND | T58: ND | U58: Extreme oligozoospermia
A59: Proband_058 | B59: Netherlands | C59: 32 | D59: Unknown | F59: Unknown | H59: None | I59: None | J59: Unknown | K59: Unknown | L59: NA | M59: 8.3 | N59: NA | O59: 7.2 | P59: 4.1 | Q59: <0.1 | R59: ND | S59: ND | T59: ND | U59: Extreme oligozoospermia
A60: Proband_059 | B60: Netherlands | C60: 31 | D60: No | F60: No | H60: None | I60: None | J60: 10 | K60: 10 | L60: 21.2 | M60: 24 | N60: No: varicocele left | O60: 7.7 | P60: 1.7 | Q60: 0 | R60: ND | S60: ND | T60: ND | U60: Azoospermia | V60: NOA
A61: Proband_060 | B61: Netherlands | C61: 29 | D61: No | F61: No | H61: Varicocelectomy left | I61: None | J61: 22 | K61: 22 | L61: ND | M61: 4.9 | N61: No: microcalcifications left, hydrocele right | O61: 7.5 | P61: 3.4 | Q61: 0 | R61: ND | S61: ND | T61: ND | U61: Azoospermia | V61: NOA
A62: Proband_061 | B62: Netherlands | C62: 31 | D62: No | F62: No | H62: Cryptorchidism unilateral; orchidopexy unilateral | I62: None | J62: 12 | K62: 15 | L62: 22.7 | M62: 29 | N62: Yes | O62: 7.3 | P62: 8.2 | Q62: 0 | R62: ND | S62: ND | T62: ND | U62: Azoospermia | V62: NOA
A63: Proband_062 | B63: Netherlands | C63: 31 | D63: Yes | E63: Parents had difficulties conceiving, only one child | F63: No | H63: None | I63: None | J63: 10 | K63: 10 | L63: 91.1 | M63: 6.6 | N63: Yes | O63: 7.5 | P63: 2.3 | Q63: 0.2 | R63: ND | S63: ND | T63: ND | U63: Extreme oligozoospermia
A64: Proband_063 | B64: Netherlands | C64: 31 | D64: No | F64: No | H64: None | I64: None | J64: 10 | K64: 10 | L64: 20 | M64: 19.3 | N64: No: varicocele left | O64: 7.5 | P64: 4.5 | Q64: <0.1 | R64: ND | S64: ND | T64: ND | U64: Extreme oligozoospermia
A65: Proband_064 | B65: Netherlands | C65: 30 | D65: Unknown | F65: Unknown | H65: None | I65: None | J65: Unknown | K65: Unknown | L65: ND | M65: ND | N65: NA | O65: 8 | P65: 3.7 | Q65: 0.9 | R65: 18 | S65: 0.5994 | T65: 99 | U65: Severe oligozoospermia
A66: Proband_065 | B66: Netherlands | C66: 32 | D66: No | F66: Yes | G66: Cousin (fathers side) deceased a couple months after birth. Cousin (mothers side) is known with intellectual disability | H66: None | I66: None | J66: 12 | K66: 12 | L66: 42.3 | M66: 7.2 | N66: No: varicocele left, hydrocele right | O66: 7.5 | P66: 2.8 | Q66: 0 | R66: ND | S66: ND | T66: ND | U66: Azoospermia | V66: NOA
A67: Proband_066 | B67: Sint Maarten (Caribbean) | C67: 30 | D67: Yes | E67: Cousin (mothers side) known with male factor infertility, brother of grandfather (mothers side) childless, cause unknown | F67: No | H67: None | I67: None | J67: 15 | K67: 12 | L67: 34 | M67: 9.1 | N67: No: hydrocele right | O67: 7.5 | P67: 3.2 | Q67: <0.1 | R67: ND | S67: ND | T67: ND | U67: Extreme oligozoospermia
A68: Proband_067 | B68: Netherlands | C68: 34 | D68: Unknown | F68: Unknown | H68: Unknown | I68: Did not receive a full consultation in Radboudumc | J68: Unknown | K68: Unknown | L68: NA | M68: 0 | N68: NA | O68: 7.4 | P68: 3.3 | Q68: 0.4 | R68: 47 | S68: 0.62 | T68: 99 | U68: Severe oligoteratozoospermia
A69: Proband_068 | B69: Netherlands | C69: 33 | D69: No | F69: Yes | G69: Cousin has a chromosomal abnormality | H69: None | I69: None | J69: 20 | K69: 20 | L69: 171 | M69: 1.7 | N69: Yes | O69: 7.7 | P69: 7.8 | Q69: 0.3 | R69: 24 | S69: 0.56 | T69: 99 | U69: Severe oligoasthenoteratozoospermia
A70: Proband_069 | B70: Netherlands | C70: 34 | D70: No | F70: No | H70: Cryptorchism unilateral with orchidopexy; inguinal hernia unilateral | I70: None | J70: 8 | K70: 8 | L70: 13.2 | M70: 21 | N70: No: varicocele left | O70: 7.3 | P70: 1.7 | Q70: <0.1 | R70: ND | S70: ND | T70: ND | U70: Extreme oligozoospermia
A71: Proband_070 | B71: Netherlands | C71: 29 | D71: No | F71: No | H71: Orchitis, epididymitis both sides | I71: None | J71: 15 | K71: 18 | L71: 5 | M71: 44 | N71: Yes | O71: 7.5 | P71: 4.8 | Q71: 0 | R71: ND | S71: ND | T71: ND | U71: Azoospermia | V71: NOA
A72: Proband_071 | B72: Netherlands | C72: 34 | D72: Unknown | F72: Unknown | H72: None | I72: None | J72: Unknown | K72: Unknown | L72: NA | M72: Unknown | N72: NA | O72: 7.2 | P72: 7.1 | Q72: <0.1 | R72: ND | S72: ND | T72: ND | U72: Extreme oligozoospermia
A73: Proband_072 | B73: Netherlands | C73: 34 | D73: Unknown | F73: Unknown | H73: Unknown | I73: None | J73: Unknown | K73: Unknown | L73: NA | M73: Unknown | N73: NA | O73: 7.6 | P73: 2 | Q73: 1.3 | R73: 38 | S73: 0.988 | T73: 97 | U73: Severe oligoteratozoospermia
A74: Proband_073 | B74: Netherlands | C74: 34 | D74: No | F74: No | H74: None | I74: None | J74: 20 | K74: 15 | L74: NA | M74: 15 | N74: No: epididymis cyst bilateral | O74: 7.5 | P74: 1.1 | Q74: <0.1 | R74: ND | S74: ND | T74: ND | U74: Extreme oligozoospermia
A75: Proband_074 | B75: Netherlands | C75: 30 | D75: No | F75: No | H75: Cryptorchidism with orchidopexy bilateral; glandulair hypospadie correction | I75: None | J75: Unknown | K75: Unknown | L75: ND | M75: ND | N75: NA | O75: 7.5 | P75: 2.8 | Q75: 0.2 | R75: 19 | S75: 0.1064 | T75: ND | U75: Severe oligoasthenozoospermia
A76: Proband_075 | B76: Netherlands | C76: 31 | D76: Yes | E76: Cousin is known with male factor infertility | F76: Yes | G76: Cousin is known with intellectual disability. Brother is known with autism due to asphyxia | H76: None | I76: None | J76: 10 | K76: 10 | L76: 5 | M76: 32 | N76: Yes | O76: 7.5 | P76: 1.5 | Q76: 0 | R76: ND | S76: ND | T76: ND | U76: Azoospermia | V76: NOA
A77: Proband_076 | B77: Netherlands | C77: 35 | D77: No | F77: No | H77: None | I77: None | J77: 15 | K77: 15 | L77: 86.6 | M77: 7.4 | N77: Yes | O77: <6.4 | P77: 0.3 | Q77: 0 | R77: ND | S77: ND | T77: ND | U77: Azoospermia | V77: Unclear OA or NOA
A78: Proband_077 | B78: Netherlands | C78: 35 | D78: No | F78: No | H78: Cryptorchism right, conservative treatment | I78: None | J78: Unknown | K78: Unknown | L78: 24.3 | M78: 32 | N78: No: varicocele left, inguinal hernia right | O78: 7.6 | P78: 1.3 | Q78: <0.1 | R78: ND | S78: ND | T78: ND | U78: Extreme oligozoospermia
A79: Proband_078 | B79: Netherlands | C79: 35 | D79: No | F79: Yes | G79: Sister with Turners syndrome (45X) | H79: Hypogonadotrope hypogonadism | I79: Mitochondrial encephalomyopathy, lactic acidosis and stroke-like episodes (MELAS); progressive hearingloss | L79: NA | M79: 8.6 | N79: NA | O79: 8.8 | P79: 4.7 | Q79: 0.4 | R79: 20 | S79: 0.376 | T79: 99 | U79: Severe oligoasthenozoospermia
A80: Proband_079 | B80: Netherlands | C80: 32 | D80: No | F80: No | H80: Cryptorchism bilateral with orchidpexy | I80: None | J80: 14 | K80: 14 | L80: 17.6 | M80: 0.73 | N80: NA | O80: 7.7 | P80: 1.8 | Q80: 0 | R80: ND | S80: ND | T80: ND | U80: Azoospermia | V80: NOA
A81: Proband_080 | B81: Netherlands | C81: 33 | D81: Yes | E81: Two brothers also have cryptorchidism, one of them is known with male factor infertility and is starting fertility treatment | F81: No | H81: Inguinal hernia unilateral; cryptorchidism bilateral with orchidopexy | I81: None | J81: 12 | K81: 12 | L81: 33.3 | M81: 20 | N81: Yes | O81: 7.4 | P81: 7.2 | Q81: <0.1 | R81: ND | S81: ND | T81: ND | U81: Extreme oligozoospermia
A82: Proband_081 | B82: Netherlands | C82: 35 | D82: No | F82: No | H82: Cryptchism unilateral with orchidopexy; inguinal hernia unilateral | I82: None | J82: Unknown | K82: Unknown | L82: NA | M82: Unknown | N82: NA | O82: 8 | P82: 4.5 | Q82: 0 | R82: ND | S82: ND | T82: ND | U82: Azoospermia | V82: NOA
A83: Proband_082 | B83: Netherlands | C83: 30 | D83: No | F83: No | H83: Varicocele bilateral | I83: None | J83: 12 | K83: 10 | L83: 45 | M83: 10 | N83: NA | O83: 7.2 | P83: 6.5 | Q83: <0.1 | R83: ND | S83: ND | T83: ND | U83: Extreme oligozoospermia
A84: Proband_083 | B84: Netherlands | C84: 34 | D84: Yes | E84: Parents known with female and male factor infertility and received fertility treatment | F84: No | H84: Inguinal hernia unilateral; cryptorchidism with orchidopexy unilateral; hydrocele unilateral | I84: None | J84: 25 | K84: 20 | L84: 189 | M84: 5.8 | N84: Yes | O84: 7.4 | P84: 3 | Q84: 0 | R84: ND | S84: ND | T84: ND | U84: Azoospermia | V84: NOA
A85: Proband_084 | B85: Netherlands | C85: 36 | D85: No | F85: No | H85: Spermatocele unilateral | I85: None | J85: 15 | K85: 15 | L85: 189 | M85: 4.2 | N85: No: cyst left | O85: 7.2 | P85: 0.7 | Q85: 0 | R85: ND | S85: ND | T85: ND | U85: Extreme oligozoospermia
A86: Proband_085 | B86: Netherlands | C86: 29 | D86: No | F86: Yes | G86: Cousin with intellectual disability | H86: None | I86: None | J86: Unknown | K86: Unknown | L86: ND | M86: ND | N86: NA | O86: 7.7 | P86: 5.4 | Q86: 0.5 | R86: 17 | S86: 0.459 | T86: 99 | U86: Severe oligoasthenoteratozoospermia
A87: Proband_086 | B87: Netherlands | C87: 37 | D87: No | F87: No | H87: Cryptorchism unilateral with orchidopexy; inguinal hernia unilateral | I87: None | J87: 25 | K87: 25 | L87: 251 | M87: 2.9 | N87: No: cyst left, epididiymis cyst right | O87: 7.5 | P87: 2.5 | Q87: 0 | R87: ND | S87: ND | T87: ND | U87: Azoospermia | V87: Unclear OA or NOA
A88: Proband_087 | B88: Netherlands | C88: 27 | D88: No | F88: Yes | G88: Cousin with a congenital muscle disease | H88: None | I88: None | J88: Unknown | K88: Unknown | L88: ND | M88: 16.7 | N88: NA | O88: 8.5 | P88: 4.8 | Q88: 0.7 | R88: 20 | S88: 0.672 | T88: ND | U88: Severe oligoasthenozoospermia
A89: Proband_088 | B89: Netherlands | C89: 30 | D89: No | F89: No | H89: Cryptochidism bilateral with orchidopexy | I89: None | J89: 10 | K89: 12 | L89: 18 | M89: 40 | N89: Yes | O89: 7.4 | P89: 5.8 | Q89: <0.1 | R89: ND | S89: ND | T89: ND | U89: Extreme oligozoospermia
A90: Proband_089 | B90: Netherlands | C90: 36 | D90: Yes | E90: Parents had two miscarriages and never managed to have a third child | F90: No | G90: Younger brother died due to a braintumor | H90: None | I90: None | J90: 15 | K90: 18 | L90: NA | M90: 14 | N90: Yes | O90: 7.5 | P90: 1.9 | Q90: 0 | R90: ND | S90: ND | T90: ND | U90: Azoospermia | V90: NOA
A91: Proband_090 | B91: Unknown | C91: 33 | D91: No | F91: No | H91: None | I91: None | J91: 15 | K91: 10 | L91: ND | M91: 11 | N91: No: cyst epidydimis right | O91: 7.7 | P91: 2 | Q91: <0.1 | R91: ND | S91: ND | T91: ND | U91: Extreme oligozoospermia
A92: Proband_091 | B92: Netherlands | C92: 31 | D92: Yes | E92: Brother and partner are known with infertility | F92: Unknown | H92: Cryptorchidism conservative treatment | I92: Nose cancer with radiotherapy | J92: 10 | K92: 10 | L92: 33 | M92: 9 | N92: Yes | O92: 7.5 | P92: 5.2 | Q92: <0.1 | R92: ND | S92: ND | T92: ND | U92: Extreme oligozoospermia
A93: Proband_092 | B93: Netherlands | C93: 35 | D93: No | F93: No | H93: None | I93: None | J93: 16 | K93: 14 | L93: 33.3 | M93: 28.5 | N93: Yes | O93: 7.5 | P93: 2.6 | Q93: 0 | R93: ND | S93: ND | T93: ND | U93: Azoospermia | V93: NOA
A94: Proband_093 | B94: Netherlands | C94: 31 | D94: Yes | E94: Brother has male factor infertility | F94: No | H94: None | I94: None | J94: Unknown | K94: Unknown | L94: 77 | M94: 4.5 | N94: Yes | O94: 7.7 | P94: 3 | Q94: 0.1 | R94: 15 | S94: 0.045 | T94: ND | U94: Severe oligoasthenozoospermia
A95: Proband_094 | B95: Netherlands | C95: 34 | D95: Yes | E95: Father has male factor infertility (teratozoospermia) | F95: No | H95: Cryptorchidism unilateral with orchidopexy | I95: None | J95: 12 | K95: 10 | L95: ND | M95: 14.7 | N95: No: hydrocele left | O95: 7.7 | P95: 3.2 | Q95: <0.1 | R95: ND | S95: ND | T95: ND | U95: Extreme oligozoospermia
A96: Proband_095 | B96: Netherlands | C96: 31 | D96: No | F96: Yes | G96: Cousin deceased shortly after birth due to a genetic blistering skin disease | H96: None | I96: None | J96: Unknown | K96: Unknown | L96: 266 | M96: 2.8 | N96: No: varicocele left | O96: 7.5 | P96: 3.3 | Q96: 0 | R96: ND | S96: ND | T96: ND | U96: Azoospermia | V96: Unclear OA or NOA
A97: Proband_096 | B97: Netherlands | C97: 35 | D97: No | F97: No | H97: None | I97: None | J97: 10 | K97: 10 | L97: 5 | M97: 25 | N97: Yes | O97: 7.7 | P97: 2.2 | Q97: <0.1 | R97: ND | S97: ND | T97: ND | U97: Extreme oligozoospermia
A98: Proband_097 | B98: Netherlands | C98: 37 | D98: No | F98: No | H98: None | I98: None | J98: 20 | K98: 20 | L98: 161 | M98: 3.8 | N98: NA | O98: 7.2 | P98: 3.8 | Q98: 0 | R98: ND | S98: ND | T98: ND | U98: Azoospermia | V98: Unclear OA or NOA
A99: Proband_098 | B99: Netherlands | C99: 32 | D99: No | F99: No | H99: Cryptorchidism bilateral with orchidopexy | I99: None | J99: 20 | K99: 20 | L99: 85 | M99: 8.3 | N99: Yes | O99: 7.2 | P99: 5.1 | Q99: 1 | R99: 36 | S99: 1.84 | T99: 99 | U99: Severe oligoteratozoospermia
A100: Proband_099 | B100: Netherlands | C100: 29 | D100: Unknown | F100: Unknown | H100: None | I100: None | J100: Unknown | K100: Unknown | L100: ND | M100: ND | N100: NA | O100: 7.7 | P100: 3.9 | Q100: 0.7 | R100: 6 | S100: 0.16 | T100: ND | U100: Severe oligoasthenozoospermia
A101: Proband_100 | B101: Netherlands | C101: 30 | D101: Yes | E101: Uncle and two cousins are known with infertility, cause unknown | F101: No | H101: Cryptorchidism with orchidopexy unilateral | I101: None | J101: Unknown | K101: Unknown | L101: ND | M101: ND | N101: NA | O101: 7.6 | P101: 4.7 | Q101: 2.5 | R101: 6 | S101: 0.71 | T101: 99 | U101: Severe oligoasthenoteratozoospermia
A102: Proband_101 | B102: Netherlands | C102: 38 | D102: Unknown | F102: Unknown | H102: Unknown | I102: Did not receive a full consultation in Radboudumc | J102: Unknown | K102: Unknown | L102: NA | M102: Unknown | N102: NA | O102: 7.2 | P102: 2.7 | Q102: <0.1 | R102: ND | S102: ND | T102: ND | U102: Extreme oligozoospermia
A103: Proband_102 | B103: Netherlands | C103: 31 | D103: No | F103: No | H103: None | I103: None | J103: 20 | K103: 20 | L103: 39 | M103: 18 | N103: NA | O103: 7.7 | P103: 3.5 | Q103: <0.1 | R103: ND | S103: ND | T103: ND | U103: Extreme oligozoospermia
A104: Proband_103 | B104: Unknown | C104: 39 | D104: No | F104: No | H104: None | I104: None | J104: Unknown | K104: Unknown | L104: NA | M104: 0 | N104: NA | O104: 7.7 | P104: 4.4 | Q104: 2.6 | R104: 51 | S104: ND | T104: 99 | U104: Severe oligoteratozoospermia
A105: Proband_104 | B105: Netherlands | C105: 39 | D105: No | F105: No | H105: None | I105: None | J105: Unknown | K105: Unknown | L105: NA | M105: 12 | N105: NA | O105: 7.5 | P105: 2.8 | Q105: 1.2 | R105: 25 | S105: 0.84 | T105: 99 | U105: Severe oligoasthenoteratozoospermia
A106: Proband_105 | B106: Netherlands | C106: 36 | D106: No | F106: No | H106: None | I106: None | J106: 18 | K106: 15 | L106: 111 | M106: 5 | N106: NA | O106: 7.4 | P106: 5.5 | Q106: 0.1 | R106: 12 | S106: 0.07 | T106: ND | U106: Severe oligoasthenozoospermia
A107: Proband_106 | B107: Netherlands | C107: 33 | D107: Yes | E107: Parents had difficulties with conceiving, 7 year age gap between patient and his brother. Mother had 2 miscarriages | F107: No | H107: Inguinal hernia bilateral | I107: None | J107: 20 | K107: 15 | L107: 24.3 | M107: 12 | N107: No: testicular and epididymis cyst left | O107: 7.5 | P107: 3.8 | Q107: 0 | R107: ND | S107: ND | T107: ND | U107: Azoospermia | V107: NOA
A108: Proband_107 | B108: Netherlands | C108: 40 | D108: No | F108: No | H108: None | I108: None | J108: Unknown | K108: Unknown | L108: NA | M108: 0 | N108: NA | O108: 7.5 | P108: 2.7 | Q108: 0.8 | R108: 23 | S108: 0.5 | T108: 98 | U108: Severe oligoasthenoteratozoospermia
A109: Proband_108 | B109: Netherlands | C109: 40 | D109: Unknown | F109: Unknown | H109: Unknown | I109: Did not receive a full consultation in Radboudumc | J109: Unknown | K109: Unknown | L109: NA | M109: 0 | N109: NA | O109: 7.5 | P109: 3.2 | Q109: 0.5 | R109: 14 | S109: 0.22 | T109: 98 | U109: Severe oligoasthenoteratozoospermia
A110: Proband_109 | B110: Netherlands | C110: 31 | D110: Unknown | F110: Unknown | H110: None | I110: None | J110: 20 | K110: 20 | L110: 164 | M110: 7 | N110: Yes | O110: 7.5 | P110: 3.9 | Q110: 0.1 | R110: 9 | S110: 0.04 | T110: 98 | U110: Severe oligoasthenoteratozoospermia
A111: Proband_110 | B111: Netherlands | C111: 32 | D111: No | F111: No | H111: None | I111: None | J111: 8 | K111: 8 | L111: 24 | M111: 35.2 | N111: Yes | O111: 7.2 | P111: 9.1 | Q111: <0.1 | R111: ND | S111: ND | T111: ND | U111: Extreme oligozoospermia
A112: Proband_111 | B112: Netherlands | C112: 32 | D112: No | F112: No | H112: None | I112: None | J112: 15 | K112: 15 | L112: 5 | M112: 17.9 | N112: NA | O112: 7.5 | P112: 3.5 | Q112: <0.1 | R112: ND | S112: ND | T112: ND | U112: Extreme oligozoospermia
A113: Proband_112 | B113: Netherlands | C113: 35 | D113: Yes | E113: Uncle with infertility and is childless | F113: No | H113: None | I113: None | J113: Unknown | K113: Unknown | L113: ND | M113: ND | N113: Yes | O113: 7.2 | P113: 5.2 | Q113: 0.4 | R113: 51 | S113: 1.1 | T113: 99 | U113: Severe oligoteratozoospermia
A114: Proband_113 | B114: Netherlands | C114: 41 | D114: No | F114: No | H114: Cryptorchism unilateral with orchidopexy; inguinal hernia bilateral | I114: None | J114: 15 | K114: 15 | L114: 78 | M114: 16 | N114: No: microcalcifications left | O114: 7.2 | P114: 5.6 | Q114: <0.1 | R114: ND | S114: ND | T114: ND | U114: Extreme oligozoospermia
A115: Proband_114 | B115: Netherlands | C115: 33 | D115: No | F115: No | H115: None | I115: None | J115: Unknown | K115: Unknown | L115: ND | M115: ND | N115: NA | O115: 7.7 | P115: 3.9 | Q115: 4 | R115: 2 | S115: 0.31 | T115: 98 | U115: Severe oligoasthenoteratozoospermia
A116: Proband_115 | B116: Netherlands | C116: 35 | D116: Yes | E116: Uncle with male factor infertility (asthenozoospermia) | F116: No | H116: None | I116: Bof, unknown if orchitis | J116: 25 | K116: 25 | L116: 136 | M116: 2.4 | N116: NA | O116: 6.7 | P116: 0.9 | Q116: 3.1 | R116: 0 | S116: 0 | T116: ND | U116: Severe oligoasthenozoospermia
A117: Proband_116 | B117: Netherlands | C117: 32 | D117: Unknown | F117: Unknown | H117: None | I117: None | J117: Unknown | K117: Unknown | L117: ND | M117: ND | N117: NA | O117: 7.7 | P117: 0.8 | Q117: 5 | R117: 9 | S117: 0.36 | T117: 98 | U117: Severe oligoasthenoteratozoospermia
A118: Proband_117 | B118: Netherlands | C118: 42 | D118: Unknown | F118: Unknown | H118: Unknown | I118: Did not receive a full consultation in Radboudumc | J118: Unknown | K118: Unknown | L118: NA | M118: Unknown | N118: NA | O118: 7.2 | P118: 8.2 | Q118: 0 | R118: ND | S118: ND | T118: ND | U118: Azoospermia | V118: Unclear OA or NOA
A119: Proband_118 | B119: Netherlands | C119: 37 | D119: No | F119: No | H119: None | I119: None | J119: 15 | K119: 15 | L119: 15 | M119: 15 | N119: No: post-epididymitis right | O119: 7.5 | P119: 5.5 | Q119: 0 | R119: ND | S119: ND | T119: ND | U119: Azoospermia | V119: NOA
A120: Proband_119 | B120: Netherlands | C120: 36 | D120: No | F120: No | H120: Varicocele unilateral | I120: None | J120: Unknown | K120: Unknown | L120: ND | M120: ND | N120: NA | O120: 7.5 | P120: 3.4 | Q120: 2.5 | R120: 17 | S120: 1.4 | T120: 99 | U120: Severe oligoasthenoteratozoospermia
A121: Proband_120 | B121: Netherlands | C121: 44 | D121: No | F121: No | H121: Unknown | I121: None | J121: Unknown | K121: Unknown | L121: NA | M121: Unknown | N121: NA | O121: 7.7 | P121: 2.3 | Q121: 1.7 | R121: 9 | S121: ND | T121: ND | U121: Severe oligoasthenozoospermia
A122: Proband_121 | B122: Netherlands | C122: 44 | D122: No | F122: No | H122: Cryptorchism unilateral with orchidopexy | I122: None | J122: 20 | K122: 20 | L122: NA | M122: 5.4 | N122: No: varicocele left | O122: 7.6 | P122: 3.5 | Q122: 0 | R122: ND | S122: ND | T122: ND | U122: Azoospermia | V122: Unclear OA or NOA
A123: Proband_122 | B123: Netherlands | C123: 41 | D123: No | F123: Unknown | H123: None | I123: None | J123: 20 | K123: 20 | L123: 196 | M123: 5 | N123: No; varicocele left | O123: 7.5 | P123: 5 | Q123: 0 | R123: ND | S123: ND | T123: ND | U123: Azoospermia | V123: NOA
A124: Proband_123 | B124: Netherlands | C124: 45 | D124: No | F124: No | H124: None | I124: None | J124: 10 | K124: 15 | L124: NA | M124: 7 | N124: NA | O124: 7.8 | P124: 4.2 | Q124: 0 | R124: ND | S124: ND | T124: ND | U124: Azoospermia | V124: NOA
A125: Proband_124 | B125: Netherlands | C125: 44 | D125: No | F125: No | H125: None | I125: Previously 4x ICSI in Germany; no pregnancy | J125: Unknown | K125: Unknown | L125: ND | M125: ND | N125: NA | O125: 7.5 | P125: 3.5 | Q125: 2 | R125: 12 | S125: 0.84 | T125: 99 | U125: Severe oligoasthenoteratozoospermia
A126: Proband_125 | B126: Netherlands | C126: 38 | D126: No | F126: No | H126: Cryptorchidism unilateral, conservative treatment | I126: None | J126: 15 | K126: 15 | L126: 80 | M126: 13 | N126: Yes | O126: 7.5 | P126: 2.5 | Q126: 0 | R126: ND | S126: ND | T126: ND | U126: Azoospermia | V126: NOA
A127: Proband_126 | B127: Netherlands | C127: 39 | D127: Unknown | F127: Unknown | H127: None | I127: None | J127: 18 | K127: 15 | L127: ND | M127: 15 | N127: NA | O127: 7.6 | P127: 1.9 | Q127: 0.4 | R127: 5 | S127: 0.04 | T127: 99 | U127: Severe oligoasthenoteratozoospermia
A128: Proband_127 | B128: Netherlands | C128: 49 | D128: No | F128: No | H128: None | I128: None | J128: 20 | K128: 20 | L128: 150 | M128: 8 | N128: NA | O128: 7.4 | P128: 1.8 | Q128: <0.1 | R128: ND | S128: ND | T128: ND | U128: Extreme oligozoospermia
A129: Proband_128 | B129: Netherlands | C129: 28 | D129: No | F129: Yes | G129: Second cousin with Down's syndrome | H129: Retractile testis as a child | I129: None | J129: 6 | K129: 6 | L129: 43.5 | M129: 16 | N129: Yes | O129: 8 | P129: 1.7 | Q129: 0 | R129: ND | S129: ND | T129: ND | U129: Azoospermia | V129: NOA
A130: Proband_129 | B130: Netherlands | C130: 31 | D130: Yes | E130: Uncle from mothers side had fertility problems and no children | F130: No | H130: Cryptorchism unilateral with orchidopexy, unilateral absence of testicle, atrophic kidney unilateral, inguinal hernia bilateral | I130: None | J130: 6 | K130: Absent | L130: 5 | M130: 41.3 | N130: Yes | O130: 7.2 | P130: 3.8 | Q130: 0 | R130: ND | S130: ND | T130: ND | U130: Azoospermia | V130: NOA
A131: Proband_130 | B131: Netherlands | C131: 34 | D131: No | F131: Possible | G131: Cousin with cleft palate | H131: Epididymitis | I131: None | J131: 15 | K131: 12 | L131: 52.3 | M131: 9.4 | N131: Yes | O131: 7.7 | P131: 3.3 | Q131: 0 | R131: ND | S131: ND | T131: ND | U131: Azoospermia | V131: NOA
A132: Proband_131 | B132: Netherlands | C132: 30 | D132: No | F132: Yes | G132: Cousin with intellectual disability | H132: None | I132: None | J132: 15 | K132: 15 | L132: 19.9 | M132: 14 | N132: Yes | O132: 8 | P132: 3.2 | Q132: 0 | R132: ND | S132: ND | T132: ND | U132: Azoospermia | V132: NOA
A133: Proband_132 | B133: Netherlands | C133: 33 | D133: No | F133: No | H133: Testicular trauma | I133: None | J133: 10 | K133: 10 | L133: 5 | M133: 21 | N133: Yes | O133: 7.7 | P133: 5.4 | Q133: 0 | R133: ND | S133: ND | T133: ND | U133: Azoospermia | V133: NOA
A134: Proband_133 | B134: Netherlands | C134: 30 | D134: No | F134: No | H134: Testicular trauma bilateral | I134: None | J134: 15 | K134: 15 | L134: 225 | M134: 5 | N134: Yes | O134: 7.5 | P134: 1.7 | Q134: 0 | R134: ND | S134: ND | T134: ND | U134: Azoospermia | V134: Unclear OA or NOA
A135: Proband_134 | B135: Netherlands | C135: 27 | D135: No | F135: No | H135: None | I135: None | J135: 12 | K135: 10 | L135: 18.9 | M135: 17.5 | N135: No: varicocele left | O135: 8 | P135: 1.2 | Q135: 0 | R135: ND | S135: ND | T135: ND | U135: Extreme oligozoospermia
A136: Proband_135 | B136: Netherlands | C136: 31 | D136: No | F136: No | H136: None | I136: Attention-deficit hyperactivity disorder (ADHD) | J136: 6 | K136: 6 | L136: <10 | M136: 19 | N136: Yes | O136: 7.7 | P136: 2.2 | Q136: <0.1 | R136: 50 | S136: ND | T136: ND | U136: Severe oligozoospermia
A137: Proband_136 | B137: Netherlands | C137: 39 | D137: No | F137: No | H137: None | I137: None | J137: 10 | K137: 15 | L137: 92.5 | M137: 3.3 | N137: No: varicocele bilateral | O137: 7.7 | P137: 5.3 | Q137: 0.4 | R137: 28 | S137: 0.6 | T137: ND | U137: Severe oligoasthenozoospermia
A138: Proband_137 | B138: Netherlands | C138: 32 | D138: No | F138: No | H138: None | I138: None | J138: 12 | K138: 12 | L138: 82.5 | M138: 5.8 | N138: Yes | O138: 7.8 | P138: 0.5 | Q138: 0 | R138: ND | S138: ND | T138: ND | U138: Azoospermia | V138: NOA
A139: Proband_138 | B139: Netherlands | C139: 35 | D139: No | F139: No | H139: Cryptorchism unilateral with orchidopexy; inguinal hernia bilateral; excision of cyste in left testicle | I139: None | J139: 6 | K139: 12 | L139: 48.6 | M139: 13 | N139: No: cyst left | O139: 7.5 | P139: 4.2 | Q139: 0.1 | R139: ND | S139: ND | T139: ND | U139: Extreme oligozoospermia
A140: Proband_139 | B140: Netherlands | C140: 32 | D140: No | F140: No | H140: Cryptorchism bilateral with orchidopexy | I140: None | J140: 5 | K140: 5 | L140: 46.6 | M140: 12 | N140: No: varicocele bilateral, cyst left | O140: 7.9 | P140: 3 | Q140: 0 | R140: ND | S140: ND | T140: ND | U140: Extreme oligozoospermia
A141: Proband_140 | B141: Netherlands | C141: 39 | D141: No | F141: No | H141: None | I141: Gynaecomastia | J141: 12 | K141: 12 | L141: 14.9 | M141: 16 | N141: No: hydrocele bilateral | O141: 7.5 | P141: 3.3 | Q141: 0 | R141: ND | S141: ND | T141: ND | U141: Azoospermia | V141: NOA
A142: Proband_141 | B142: Netherlands | C142: 34 | D142: No | F142: No | H142: None | I142: None | J142: 10 | K142: 10 | L142: 37.4 | M142: 26 | N142: No: inhomogenous lesion bilateral | O142: 7.2 | P142: 2.3 | Q142: 0 | R142: ND | S142: ND | T142: ND | U142: Azoospermia | V142: NOA
A143: Proband_142 | B143: Netherlands | C143: 28 | D143: No | F143: No | H143: None | I143: None | J143: 10 | K143: 10 | L143: 39.7 | M143: 15 | N143: Yes | O143: 7.2 | P143: 3.5 | Q143: 0 | R143: ND | S143: ND | T143: ND | U143: Azoospermia | V143: NOA
A144: Proband_143 | B144: Netherlands | C144: 31 | D144: Yes | E144: Father had male factor infertility | F144: No | H144: None | I144: Migraine | J144: 15 | K144: 15 | L144: NA | M144: 22 | N144: No: cyst right | O144: 7.5 | P144: 3.9 | Q144: 0 | R144: ND | S144: ND | T144: ND | U144: Azoospermia | V144: NOA
A145: Proband_144 | B145: Unknown | C145: 31 | D145: No | F145: No | H145: None | I145: None | J145: 8 | K145: 8 | L145: ND | M145: 14.2 | N145: No: varicocele left | O145: 7.5 | P145: 4.5 | Q145: 0 | R145: ND | S145: ND | T145: ND | U145: Azoospermia | V145: NOA
A146: Proband_145 | B146: Netherlands | C146: 38 | D146: Yes | E146: Sisters received hormonal treatment due to infertility, she now has 3 children | F146: No | H146: None | I146: None | J146: 12 | K146: 12 | L146: NA | M146: 4 | N146: Yes | O146: 7.7 | P146: 3.2 | Q146: 0.01 | R146: ND | S146: ND | T146: ND | U146: Extreme oligozoospermia
A147: Proband_146 | B147: Unknown | C147: 33 | D147: No | F147: No | H147: None | I147: None | J147: 10 | K147: 10 | L147: ND | M147: 9.7 | N147: No: varicocele left, epididymis cyst bilateral | O147: 7.7 | P147: 6.7 | Q147: 0.6 | R147: 30 | S147: 1.206 | T147: ND | U147: Severe oligoasthenozoospermia
A148: Proband_147 | B148: Netherlands | C148: 30 | D148: No | F148: Yes | G148: Congenital cardiomyopathie | H148: None | I148: None | J148: 15 | K148: 12 | L148: NA | M148: 17 | N148: Yes | O148: 7.7 | P148: 4.3 | Q148: 0.01 | R148: ND | S148: ND | T148: ND | U148: Extreme oligozoospermia
A149: Proband_148 | B149: Netherlands | C149: 31 | D149: No | F149: No | H149: None | I149: None | J149: 8 | K149: 8 | L149: NA | M149: 11 | N149: No: varicocele left | O149: 8 | P149: 0.6 | Q149: 0 | R149: ND | S149: ND | T149: ND | U149: Azoospermia | V149: NOA
A150: Proband_149 | B150: Netherlands | C150: 34 | D150: No | F150: No | H150: None | I150: None | J150: 8 | K150: 8 | L150: NA | M150: 26 | N150: Yes | O150: 7.5 | P150: 3.5 | Q150: 0 | R150: ND | S150: ND | T150: ND | U150: Azoospermia | V150: NOA
A151: Proband_150 | B151: Netherlands | C151: 38 | D151: No | F151: No | H151: None | I151: Cystoscopy without abnormalities (symptoms of pain) | J151: 8 | K151: 8 | L151: NA | M151: 26 | N151: Yes | O151: 7.7 | P151: 4.1 | Q151: 0 | R151: ND | S151: ND | T151: ND | U151: Azoospermia | V151: NOA
A152: Proband_151 | B152: Netherlands | C152: 37 | D152: Yes | E152: No infertility but a brother and cousin with cryptorchidism | F152: No | H152: Cryptorchidism bilateral with orchidopexy | I152: None | J152: 10 | K152: 6 | L152: ND | M152: 20 | N152: No: varicocele left | O152: 8 | P152: 2.8 | Q152: 0 | R152: ND | S152: ND | T152: ND | U152: Azoospermia | V152: NOA
A153: Proband_152 | B153: United Arab Emirates | C153: 36 | D153: Yes | E153: Youngest brother with male factor infertility (azoospermia) | F153: No | H153: None | I153: None | J153: 10 | K153: 10 | L153: ND | M153: 4.8 | N153: No: hydrocele left, cyst right | O153: 8 | P153: 2.3 | Q153: 0 | R153: ND | S153: ND | T153: ND | U153: Azoospermia | V153: NOA
A154: Proband_153 | B154: Netherlands | C154: 29 | D154: Yes | E154: Brother is known with male factor infertility, conceived after insemination treatment | F154: No | H154: None | I154: None | J154: 10 | K154: 10 | L154: ND | M154: 27 | N154: Yes | O154: 7.2 | P154: 2.2 | Q154: 0 | R154: ND | S154: ND | T154: ND | U154: Azoospermia | V154: NOA
A155: Proband_154 | B155: Netherlands | C155: 30 | D155: No | F155: No | H155: None | I155: None | J155: 16 | K155: 16 | L155: NA | M155: 2 | N155: No: microcalcifications right | O155: 7.7 | P155: 12.5 | Q155: 0 | R155: ND | S155: ND | T155: ND | U155: Azoospermia | V155: NOA
A156: Proband_155 | B156: Netherlands | C156: 27 | D156: Yes | E156: Uncle with fertility problems, unknown cause | F156: No | H156: None | I156: None | J156: 12 | K156: 10 | L156: NA | M156: 11 | N156: No: hydrocele bilateral | O156: 7.7 | P156: 6.1 | Q156: 0 | R156: ND | S156: ND | T156: ND | U156: Azoospermia | V156: NOA
A157: Proband_156 | B157: Netherlands | C157: 45 | D157: No | F157: No | H157: None | I157: None | J157: 10 | K157: 12 | L157: NA | M157: 19 | N157: No: microcalcifications right | O157: 7.5 | P157: 2.7 | Q157: 0 | R157: ND | S157: ND | T157: ND | U157: Azoospermia | V157: NOA
A158: Proband_157 | B158: Netherlands | C158: 35 | D158: No | F158: No | H158: Inguinal hernia unilateral | I158: None | J158: 5 | K158: 6 | L158: NA | M158: 28 | N158: No: varicocele left, cyst right | O158: 8 | P158: 1.6 | Q158: 0 | R158: ND | S158: ND | T158: ND | U158: Azoospermia | V158: NOA
A159: Proband_158 | B159: Netherlands | C159: 26 | D159: No | F159: No | H159: None | I159: None | J159: 15 | K159: 15 | L159: NA | M159: 5 | N159: Yes | O159: 7.7 | P159: 2.5 | Q159: 0 | R159: ND | S159: ND | T159: ND | U159: Azoospermia | V159: NOA
A160: Proband_159 | B160: Netherlands | C160: 27 | D160: No | F160: No | H160: Cryptorchism bilateral with orchidopexy | I160: None | J160: 5 | K160: 5 | L160: NA | M160: 33 | N160: No: cyst left, hypovascularisation right | O160: 7.7 | P160: 4.3 | Q160: 0 | R160: ND | S160: ND | T160: ND | U160: Azoospermia | V160: NOA
A161: Proband_160 | B161: Netherlands | C161: 32 | D161: Yes | E161: Cousin with male factor infertility (oligozoospermia) | F161: No | H161: Inguinal hernia unilateral | I161: None | J161: 15 | K161: 10 | L161: NA | M161: 10 | N161: Yes | O161: 7.5 | P161: 2.8 | Q161: 0 | R161: ND | S161: ND | T161: ND | U161: Azoospermia | V161: NOA
A162: Proband_161 | B162: Netherlands | C162: 32 | D162: Yes | E162: Two sisters, both with irregulair menstrual cycle | F162: No | H162: None | I162: None | J162: 8 | K162: 10 | L162: NA | M162: 16 | N162: No: varicocele left | O162: 7.5 | P162: 6.1 | Q162: 0 | R162: ND | S162: ND | T162: ND | U162: Azoospermia | V162: NOA
A163: Proband_162 | B163: Netherlands | C163: 34 | D163: Yes | E163: Brother fertility problems and cryptorchism | F163: No | H163: Cryptorchism unilateral with orchidopexy | I163: None | J163: 10 | K163: 20 | L163: NA | M163: 8.3 | N163: No: hydrocele right | O163: 7.5 | P163: 2.1 | Q163: 0.1 | R163: ND | S163: ND | T163: ND | U163: Extreme oligozoospermia
A164: Proband_163 | B164: Netherlands | C164: 37 | D164: No | F164: No | H164: None | I164: None | J164: 8 | K164: 6 | L164: NA | M164: 13 | N164: No: microcalcifications left, epididymis cyst right | O164: 7.5 | P164: 3.2 | Q164: 0 | R164: ND | S164: ND | T164: ND | U164: Azoospermia | V164: NOA
A165: Proband_164 | B165: Netherlands | C165: 37 | D165: No | F165: No | H165: None | I165: Patent ductus arteriosus | J165: 6 | K165: 6 | L165: NA | M165: 19 | N165: No: microcalcifications left | O165: 7.7 | P165: 1.8 | Q165: 0 | R165: ND | S165: ND | T165: ND | U165: Azoospermia | V165: NOA
A166: Proband_165 | B166: Netherlands | C166: 35 | D166: No | F166: No | H166: Cryptorchism unilateral with orchidopexy; orchidectomy unilateral due to torsio | I166: None | K166: 10 | L166: NA | M166: 23 | N166: Yes | O166: 7.9 | P166: 4.4 | Q166: 0 | R166: ND | S166: ND | T166: ND | U166: Extreme oligozoospermia
A167: Proband_166 | B167: Netherlands | C167: 30 | D167: No | F167: No | H167: Cryptorchism unilateral with orchidopexy; intra-abdominal gonade unilateral; hypoplastic prostate; mullerian duct remnants; disorders of sexual development (DSD) | I167: None | J167: 3 | K167: Unknown | L167: NA | M167: 33 | N167: No: atrophic testis left | O167: 7.5 | P167: 2.2 | Q167: 0 | R167: ND | S167: ND | T167: ND | U167: Azoospermia | V167: NOA
A168: Proband_167 | B168: Netherlands | C168: 33 | D168: No | F168: No | H168: None | I168: None | J168: 15 | K168: 15 | L168: NA | M168: 2.7 | N168: No: microcalcifications bilateral | O168: 7.5 | P168: 2.7 | Q168: 0 | R168: ND | S168: ND | T168: ND | U168: Azoospermia | V168: NOA
A169: Proband_168 | B169: Netherlands | C169: 37 | D169: No | F169: No | H169: Cryptorchism unilateral with orchidopexy | I169: None | J169: 6 | K169: 10 | L169: NA | M169: 10 | N169: Yes | O169: 7.5 | P169: 3.6 | Q169: 0 | R169: ND | S169: ND | T169: ND | U169: Extreme oligozoospermia
A170: Proband_169 | B170: Netherlands | C170: 34 | D170: No | F170: No | H170: Correction of hypospadia | I170: None | J170: 12 | K170: 8 | L170: NA | M170: 18.3 | N170: No: cyst left | O170: 7.7 | P170: 4 | Q170: 0 | R170: ND | S170: ND | T170: ND | U170: Azoospermia | V170: NOA
A171: Proband_170 | B171: Netherlands | C171: 43 | D171: No | F171: No | H171: Cryptorchism unilateral; inguinal hernia unilateral | I171: Colitis ulcerosa | J171: 10 | K171: 10 | L171: NA | M171: 33 | N171: Yes | O171: 7.7 | P171: 2.8 | Q171: 0 | R171: ND | S171: ND | T171: ND | U171: Azoospermia | V171: NOA
A172: Proband_171 | B172: United Kingdom | C172: 27 | D172: No | F172: No | H172: None | I172: Right ear surgery - deaf | J172: 15 | K172: 15 | L172: NA | M172: 7.4 | N172: NA | O172: 8 | P172: 2.9 | Q172: 0 | R172: ND | S172: ND | T172: ND | U172: Azoospermia | V172: NOA
A173: Proband_172 | B173: United Kingdom | C173: 36 | D173: No | F173: No | H173: None | I173: Cholecystectomy and gastric bypass (2011) | J173: 15 | K173: 15 | L173: NA | M173: 11.3 | N173: NA | O173: 8 | P173: 9.9 | Q173: 0 | R173: ND | S173: ND | T173: ND | U173: Azoospermia | V173: NOA
A174: Proband_173 | B174: United Kingdom | C174: 30 | D174: No | F174: No | H174: None | I174: Asthma | J174: 20 | K174: 20 | L174: NA | M174: 18.4 | N174: NA | O174: 7.5 | P174: 2.6 | Q174: 0 | R174: ND | S174: ND | T174: ND | U174: Azoospermia | V174: NOA
A175: Proband_174 | B175: United Kingdom | C175: 32 | D175: Yes | E175: Cousin has CF | F175: No | H175: Left varicocele embolisation | I175: Right strangulated hernia as a baby; | J175: 20 | K175: 20 | L175: NA | M175: 20.8 | N175: NA | O175: 8 | P175: 4.7 | Q175: 0 | R175: ND | S175: ND | T175: ND | U175: Azoospermia | V175: NOA
A176: Proband_175 | B176: United Kingdom | C176: 35 | D176: No | F176: No | H176: Cryptorchism bilateral with orchidopexy; Seminoma | I176: Anxiety/depression; | J176: 8 | K176: 8 | L176: NA | M176: 49.2 | N176: NA | O176: 8.5 | P176: 3.2 | Q176: 0 | R176: ND | S176: ND | T176: ND | U176: Azoospermia | V176: NOA
A177: Proband_176 | B177: United Kingdom | C177: 34 | D177: No | F177: No | H177: Varicocele | I177: None | J177: 15 | K177: 15 | L177: NA | M177: 19.3 | N177: NA | O177: 7.5 | P177: 3.6 | Q177: 0 | R177: ND | S177: ND | T177: ND | U177: Azoospermia | V177: NOA
A178: Proband_177 | B178: United Kingdom | C178: 23 | D178: No | F178: No | H178: None | I178: None | J178: 8 | K178: 6 | L178: NA | M178: 11.4 | N178: NA | O178: Unknown | P178: 5.2 | Q178: <2 | R178: 49 | S178: 5.1 | T178: 99 | U178: Severe oligozoospermia
A179: Proband_178 | B179: United Kingdom | C179: 33 | D179: No | F179: No | H179: Cryptorchism bilateral with orchidopexy | I179: Undescended Testes | J179: 10 | K179: 12 | L179: NA | M179: 19 | N179: NA | O179: Unknown | P179: 4.3 | Q179: <2 | R179: 30 | S179: 0.6 | T179: 100 | U179: Severe oligozoospermia
A180: Proband_179 | B180: United Kingdom | C180: 31 | D180: Yes | E180: Brother x2 required ICSI treatment for very poor sperm quality. Paternal Uncle and Aunt are infertile as well. | F180: No | H180: Cryptorchism bilateral with orchidopexy | I180: Gastic reflux | J180: 12 | K180: 12 | L180: NA | M180: 28.4 | N180: NA | O180: 8 | P180: 3.5 | Q180: 0 | R180: ND | S180: ND | T180: ND | U180: Azoospermia | V180: NOA
A181: Proband_180 | B181: United Kingdom | C181: 40 | D181: No | F181: No | H181: Cryptorchism bilateral with orchidopexy | I181: RTA fractured pelvis | J181: 10 | K181: 10 | L181: NA | M181: 25.8 | N181: NA | O181: 8 | P181: 6.7 | Q181: 0 | R181: ND | S181: ND | T181: ND | U181: Azoospermia | V181: NOA
A182: Proband_181 | B182: United Kingdom | C182: 38 | D182: No | F182: No | H182: Cryptorchism unilateral with orchidopexy | I182: None | J182: 30 | K182: 30 | L182: NA | M182: 5.4 | N182: NA | O182: Unknown | P182: 7.1 | Q182: <2 | R182: 20 | S182: 2.8 | T182: 99 | U182: Severe oligozoospermia
A183: Proband_182 | B183: United Kingdom | C183: 30 | D183: No | F183: No | H183: Cryptorchism bilateral with orchidopexy | I183: None | J183: 15 | K183: 15 | L183: NA | M183: 36.2 | N183: NA | O183: 8 | P183: 3.7 | Q183: 0 | R183: ND | S183: ND | T183: ND | U183: Azoospermia | V183: NOA
A184: Proband_183 | B184: United Kingdom | C184: 38 | D184: No | F184: No | H184: Cryptorchism | I184: Gout | J184: 15 | K184: 15 | L184: NA | M184: 16 | N184: NA | O184: 10 | P184: 4.7 | Q184: 0 | R184: ND | S184: ND | T184: ND | U184: Azoospermia | V184: NOA
A185: Proband_184 | B185: United Kingdom | C185: 30 | D185: No | F185: No | H185: Small R+L varicoceles | I185: Asthma; Lesion at cervicomedullary junction = asymptomatic; Peanut allergy | J185: 25 | K185: 25 | L185: NA | M185: 20 | N185: NA | O185: Unknown | P185: 2.8 | Q185: 0 | R185: ND | S185: ND | T185: ND | U185: Azoospermia | V185: NOA
A186: Proband_185 | B186: United Kingdom | C186: 31 | D186: No | F186: No | H186: None | I186: None | J186: 10 | K186: 10 | L186: NA | M186: 21.2 | N186: NA | O186: 9 | P186: 2.4 | Q186: 0 | R186: ND | S186: ND | T186: ND | U186: Azoospermia | V186: NOA
A188: NA =not available
A189: ND = not determined
A190: NOA = non-obstructive azoospermia
A191: * At diagnosis of infertility

Sheet Table 2 Treatment outcome
A1: ID | B1: TESE performed | C1: TESE side | D1: Sperm found | E1: Sperm motility | F1: TESE Malignancy | G1: ICSI treatment | H1: Pregnancy | I1: Live birth
A2: Proband_001 | B2: Yes | C2: Left | D2: No | E2: No sperm | F2: No | G2: No | H2: No | I2: No
A3: Proband_002 | B3: Yes | C3: Both, no sperm | D3: No | E3: No sperm | F3: No | G3: No | H3: No | I3: No
A4: Proband_003 | B4: Yes | C4: Both | D4: Yes | E4: Motile | F4: No | G4: Yes | H4: Yes | I4: Yes
A5: Proband_004 | B5: Yes | C5: Both, no sperm | D5: No | E5: No sperm | F5: No | G5: No | H5: No | I5: No
A6: Proband_005 | B6: Yes | C6: Both, no sperm | D6: No | E6: No sperm | F6: No | G6: No | H6: No | I6: No
A7: Proband_006 | B7: Yes | C7: Both, no sperm | D7: No | E7: No sperm | F7: No | G7: No | H7: No | I7: No
A8: Proband_007 | B8: Yes | C8: Both, no sperm | D8: No | E8: No sperm | F8: No | G8: No | H8: No | I8: No
A9: Proband_008 | B9: Yes | C9: Both, no sperm | D9: No | E9: No sperm | F9: No | G9: No | H9: No | I9: No
A10: Proband_009 | B10: Yes | C10: Left | D10: No | E10: No sperm | F10: No | G10: No | H10: No | I10: No
A11: Proband_010 | B11: Yes | C11: Left | D11: No | E11: No sperm | F11: No | G11: No | H11: No | I11: No
A12: Proband_011 | B12: Yes | C12: Both, no sperm | D12: No | E12: No sperm | F12: No | G12: No | H12: No | I12: No
A13: Proband_012 | B13: Yes | C13: Right | D13: Yes | E13: Non-motile | F13: No | G13: Yes | H13: Yes | I13: Yes
A14: Proband_013 | B14: Yes | C14: Both, no sperm | D14: No | E14: No sperm | F14: No | G14: No | H14: No | I14: No
A15: Proband_014 | B15: Yes | C15: Right | D15: No | E15: No sperm | F15: No | G15: No | H15: No | I15: No
A16: Proband_015 | B16: Yes | C16: Both, no sperm | D16: No | E16: No sperm | F16: No | G16: No | H16: No | I16: No
A17: Proband_016 | B17: Yes | C17: Right | D17: No | E17: No sperm | F17: No | G17: No | H17: No | I17: No
A18: Proband_017 | B18: Yes | C18: Both, sperm both sides | D18: Yes | E18: Motile | F18: No | G18: Yes | H18: No | I18: No
A19: Proband_018 | B19: Yes | C19: Left | D19: Yes | E19: Non-motile | F19: No | G19: Yes | H19: No | I19: No
A20: Proband_019 | B20: Yes | C20: Left | D20: No | E20: No sperm | F20: No | G20: No | H20: No | I20: No
A21: Proband_020 | B21: Yes | C21: Right | D21: Yes | E21: Motile | F21: Unknown | G21: Yes | H21: Yes | I21: Yes
A22: Proband_021 | B22: Yes | C22: Left | D22: No | E22: No sperm | F22: No | G22: No | H22: No | I22: No
A23: Proband_022 | B23: Yes | C23: Right | D23: No | E23: No sperm | F23: Unknown | G23: No | H23: No | I23: No
A24: Proband_023 | B24: Yes | C24: Left | D24: Yes | E24: Motile | F24: No | G24: Yes | H24: No | I24: No
A25: Proband_024 | B25: Yes | C25: Right | D25: Yes | E25: Motile | F25: Unknown | G25: Yes | H25: No | I25: No
A26: Proband_025 | B26: Yes | C26: Both, sperm right | D26: Yes | E26: Motile | F26: No | G26: Yes | H26: Yes | I26: Yes
A27: Proband_026 | B27: Yes | C27: Right | D27: Yes | E27: Motile | F27: No | G27: Yes | H27: Yes | I27: Yes
A28: Proband_027 | B28: Yes | C28: Left | D28: Yes | E28: Motile | F28: No | G28: Yes | H28: Yes | I28: Yes
A29: Proband_028 | B29: Yes | C29: Both, sperm right | D29: Yes | E29: Non-motile | F29: No | G29: Yes | H29: No | I29: No
A30: Proband_029 | B30: Yes | C30: Right | D30: No | E30: No sperm | F30: No | G30: No | H30: No | I30: No
A31: Proband_030 | B31: Yes | C31: Left | D31: Yes | E31: Motile | F31: No | G31: Yes | H31: Yes | I31: Yes
A32: Proband_031 | B32: Yes | C32: Both, no sperm | D32: No | E32: No sperm | F32: No | G32: No | H32: No | I32: No
A33: Proband_032 | B33: Yes | C33: Both, sperm both sides | D33: Yes | E33: Motile | F33: No | G33: Yes | H33: Yes | I33: Yes
A34: Proband_033 | B34: Yes | C34: Right | D34: No | E34: No sperm | F34: Unknown | G34: No | H34: No | I34: No
A35: Proband_034 | B35: Yes | C35: Both, no sperm | D35: No | E35: No sperm | F35: No | G35: No | H35: No | I35: No
A36: Proband_035 | B36: Yes | C36: Both, sperm right | D36: Yes | E36: Motile | F36: No | G36: Yes | H36: No | I36: No
A37: Proband_036 | B37: Yes | C37: Left | D37: No | E37: No sperm | F37: No | G37: No | H37: No | I37: No
A38: Proband_037 | B38: Yes | C38: Right | D38: Yes | E38: Motile | F38: No | G38: Yes | H38: Yes | I38: Yes
A39: Proband_038 | B39: Yes | C39: Unknown | D39: Unknown | E39: Unknown | F39: Unknown | G39: Yes | H39: Yes | I39: Yes
A40: Proband_039 | B40: Yes | C40: Both, sperm right | D40: Yes | E40: Non-motile | F40: No | G40: No | H40: No | I40: No
A41: Proband_040 | B41: Yes | C41: Right | D41: Yes | E41: Motile | F41: No | G41: Yes | H41: Yes | I41: Yes
A42: Proband_042 | B42: Yes | C42: Both, no sperm | D42: No | E42: No sperm | F42: No | G42: No | H42: No | I42: No
A43: Proband_043 | B43: Yes | C43: Left | D43: Yes | E43: Non-motile | F43: No | G43: Yes | H43: No | I43: No
A44: Proband_044 | B44: Yes | C44: Left | D44: No | E44: No sperm | F44: No | G44: No | H44: No | I44: No
A45: Proband_045 | B45: Yes | C45: Right | D45: No | E45: No sperm | F45: Unknown | G45: No | H45: No | I45: No
A46: Proband_046 | B46: Yes | C46: Both, sperm right | D46: Yes | E46: Motile | F46: No | G46: Yes | H46: Yes | I46: Yes
A47: Proband_047 | B47: Yes | C47: Both, no sperm | D47: No | E47: No sperm | F47: No | G47: No | H47: No | I47: No
A48: Proband_048 | B48: Yes | C48: Both, no sperm | D48: No | E48: No sperm | F48: No | G48: No | H48: No | I48: No
A49: Proband_053 | B49: Yes | C49: Right | D49: Yes | E49: Motile | F49: No | G49: Yes | H49: Yes | I49: Yes
A50: Proband_059 | B50: Yes | C50: Both, no sperm | D50: No | E50: No sperm | F50: No | G50: No | H50: No | I50: No
A51: Proband_060 | B51: Yes | C51: Both, no sperm | D51: No | E51: No sperm | F51: No | G51: No | H51: No | I51: No
A52: Proband_061 | B52: Yes | C52: Both, sperm right | D52: Yes | E52: Motile | F52: No | G52: Yes | H52: Yes | I52: Yes
A53: Proband_063 | B53: Yes | C53: Both, sperm right | D53: Yes | E53: Motile | F53: No | G53: Yes | H53: Yes | I53: Yes
A54: Proband_065 | B54: Yes | C54: Both, sperm both sides | D54: Yes | E54: Motile | F54: No | G54: Yes | H54: Yes | I54: Yes
A55: Proband_069 | B55: Yes | C55: Right | D55: Yes | E55: Motile | F55: No | G55: Yes | H55: No | I55: No
A56: Proband_070 | B56: Yes | C56: Both | D56: Yes | E56: Motile | F56: No | G56: No | H56: No | I56: No
A57: Proband_077 | B57: Yes | C57: Left | D57: Yes | E57: Motile | F57: No | G57: Yes | H57: Yes | I57: Yes
A58: Proband_079 | B58: Yes | C58: Right | D58: Yes | E58: Motile | F58: No | G58: Yes | H58: Yes | I58: Yes
A59: Proband_083 | B59: Yes | C59: Both, sperm both sides | D59: Yes | E59: Motile | F59: No | G59: Yes | H59: Yes | I59: Yes
A60: Proband_086 | B60: Yes | C60: Both, sperm both sides | D60: Yes | E60: Motile | F60: No | G60: Yes | H60: Yes | I60: Yes
A61: Proband_089 | B61: Yes | C61: Both, no sperm | D61: No | E61: No sperm | F61: No | G61: No | H61: No | I61: No
A62: Proband_090 | B62: Yes | C62: Unknown | D62: Yes | E62: Motile | F62: Unknown | G62: Yes | H62: Yes | I62: Yes
A63: Proband_092 | B63: Yes | C63: Both, no sperm | D63: No | E63: No sperm | F63: No | G63: No | H63: No | I63: No
A64: Proband_095 | B64: Yes | C64: Right | D64: Yes | E64: Motile | F64: Unknown | G64: Yes | H64: Yes | I64: Yes
A65: Proband_096 | B65: Yes | C65: Both, sperm both sides | D65: Yes | E65: Non-motile | F65: No | G65: Yes | H65: Yes | I65: Yes
A66: Proband_097 | B66: Yes | C66: Left | D66: Yes | E66: Motile | F66: No | G66: Yes | H66: Yes | I66: Yes
A67: Proband_106 | B67: Yes | C67: Both, no sperm | D67: No | E67: No sperm | F67: No | G67: No | H67: No | I67: No
A68: Proband_115 | B68: Yes | C68: Both, sperm both sides | D68: Yes | E68: Motile | F68: No | G68: Yes | H68: Yes | I68: Yes
A69: Proband_121 | B69: Yes | C69: Right | D69: Yes | E69: Non-motile | F69: No | G69: Yes | H69: No | I69: No
A70: Proband_122 | B70: Yes | C70: Right | D70: Yes | E70: Unknown | F70: No | G70: Yes, zero oocytes | H70: No | I70: No
A71: Proband_123 | B71: Yes | C71: Unknown | D71: Yes | E71: Non-motile | F71: No | G71: Yes | H71: No | I71: No
A72: Proband_125 | B72: Yes, elsewhere | C72: Unknown, elsewhere | D72: Unknown | E72: Unknown, elsewhere | F72: Unknown, elsewhere | G72: Yes, elsewhere | H72: Yes | I72: Yes
A73: Proband_128 | B73: Yes | C73: Both, sperm both sides | D73: Yes | E73: Motile | F73: No | G73: Yes | H73: Yes | I73: No
A74: Proband_129 | B74: Yes | C74: Both, no sperm | D74: No | E74: No sperm | F74: No | G74: No | H74: No | I74: No
A75: Proband_131 | B75: Yes | C75: Both, sperm left | D75: Yes | E75: Non-motile | F75: No | G75: Yes | H75: Yes | I75: Yes
A76: Proband_132 | B76: Yes | C76: Both, sperm both sides | D76: Yes | E76: Non-motile | F76: No | G76: Yes | H76: Yes | I76: Yes
A77: Proband_134 | B77: Yes | C77: Both, sperm both sides | D77: Yes | E77: Motile | F77: No | G77: Yes | H77: Yes | I77: Yes
A78: Proband_137 | B78: Yes | C78: Both, sperm right | D78: Yes | E78: Motile | F78: No | G78: Yes | H78: No | I78: No
A79: Proband_138 | B79: Yes | C79: Right | D79: Yes | E79: Motile | F79: No | G79: Yes | H79: Yes | I79: Yes
A80: Proband_140 | B80: Yes | C80: Both, sperm both sides | D80: Yes | E80: Motile | F80: No | G80: Yes | H80: No | I80: No
A81: Proband_141 | B81: Yes | C81: Both, sperm both sides | D81: Yes | E81: Motile | F81: No | G81: Yes | H81: Yes | I81: Yes
A82: Proband_142 | B82: Yes | C82: Both, sperm both sides | D82: Yes | E82: Motile | F82: No | G82: Yes | H82: Yes | I82: No
A83: Proband_143 | B83: Yes | C83: Both, sperm both sides | D83: Yes | E83: Motile | F83: No | G83: Yes | H83: No | I83: No
A84: Proband_144 | B84: Yes | C84: Both, sperm both sides | D84: Yes | E84: Motile | F84: Unknown | G84: Yes | H84: Yes | I84: Yes
A85: Proband_148 | B85: Yes | C85: Both, no sperm | D85: No | E85: No sperm | F85: No | G85: No | H85: No | I85: No
A86: Proband_149 | B86: Yes | C86: Both, sperm both sides | D86: Yes | E86: Motile | F86: No | G86: Yes | H86: Yes | I86: Yes
A87: Proband_150 | B87: Yes | C87: Both, no sperm | D87: No | E87: No sperm | F87: No | G87: No | H87: No | I87: No
A88: Proband_151 | B88: Yes | C88: Both, no sperm | D88: No | E88: No sperm | F88: No | G88: No | H88: No | I88: No
A89: Proband_152 | B89: Yes | C89: Both, no sperm | D89: No | E89: No sperm | F89: No | G89: No | H89: No | I89: No
A90: Proband_153 | B90: Yes | C90: Both, sperm right | D90: No | E90: Motile | F90: No | G90: Yes | H90: Yes | I90: Yes
A91: Proband_155 | B91: Yes | C91: Both, sperm right | D91: Yes | E91: Motile | F91: No | G91: Yes | H91: No | I91: No
A92: Proband_156 | B92: Yes | C92: Both, no sperm | D92: No | E92: No sperm | F92: No | G92: No | H92: No | I92: No
A93: Proband_157 | B93: Yes | C93: Both, no sperm | D93: No | E93: No sperm | F93: No | G93: No | H93: No | I93: No
A94: Proband_159 | B94: Yes | C94: Both, sperm right | D94: Yes | E94: Motile | F94: No | G94: Yes | H94: Yes | I94: Yes
A95: Proband_160 | B95: Yes | C95: Both, no sperm | D95: No | E95: No sperm | F95: No | G95: No | H95: No | I95: No
A96: Proband_161 | B96: Yes | C96: Both, no sperm | D96: No | E96: No sperm | F96: No | G96: No | H96: No | I96: No
A97: Proband_162 | B97: Yes | C97: Right, no sperm | D97: No | E97: No sperm | F97: No | G97: No | H97: No | I97: No
A98: Proband_163 | B98: Yes | C98: Both, sperm both sides | D98: Yes | E98: Motile | F98: No | G98: Yes | H98: Yes | I98: Yes
A99: Proband_164 | B99: Yes | C99: Both, sperm both sides | D99: Yes | E99: Motile | F99: No | G99: Yes | H99: Yes | I99: Yes
A100: Proband_165 | B100: Yes | C100: Right | D100: Yes | E100: Non-motile | F100: No | G100: Yes | H100: Yes | I100: Yes
A101: Proband_166 | B101: Yes | C101: Both, no sperm | D101: No | E101: No sperm | F101: No | G101: No | H101: No | I101: No
A102: Proband_167 | B102: Yes | C102: Both, sperm both sides | D102: Yes | E102: Motile | F102: No | G102: Yes | H102: Yes | I102: Yes
A103: Proband_168 | B103: Yes | C103: Both, sperm both sides | D103: Yes | E103: Motile | F103: No | G103: Yes | H103: No | I103: No
A104: Proband_169 | B104: Yes | C104: Both, sperm both sides | D104: Yes | E104: Motile | F104: No | G104: Yes | H104: No | I104: No
A105: Proband_170 | B105: Yes | C105: Both, sperm both sides | D105: Yes | E105: Motile | F105: No | G105: No | H105: No | I105: No
A106: Proband_171 | B106: Yes | C106: Both, no sperm | D106: No | E106: No sperm | F106: Unknown | G106: No | H106: No | I106: No
A107: Proband_172 | B107: Yes | C107: Both, sperm both sides | D107: No | E107: Non-motile | F107: Unknown | G107: No | H107: No | I107: No
A108: Proband_173 | B108: Yes | C108: Both, sperm right | D108: Yes | E108: Motile | F108: Unknown | G108: Yes | H108: Unknown | I108: Unknown
A109: Proband_174 | B109: Yes | C109: Right, no sperm | D109: No | E109: No sperm | F109: Unknown | G109: No | H109: No | I109: No
A110: Proband_175 | B110: Yes | C110: Left | D110: Yes | E110: Motile | F110: Unknown | G110: Yes | H110: Yes | I110: No, miscarriage
A111: Proband_176 | B111: Yes | C111: Both, sperm both sides | D111: Yes | E111: Non-motile | F111: Unknown | G111: Yes | H111: No | I111: No
A112: Proband_179 | B112: Yes | C112: Both | D112: Yes | E112: Motile | F112: Unknown | G112: Yes | H112: No | I112: No
A113: Proband_180 | B113: Yes | C113: Both, sperm right | D113: Yes | E113: Non-motile | F113: Unknown | G113: No | H113: No | I113: No
A114: Proband_182 | B114: Yes | C114: Both | D114: Yes | E114: Non-motile | F114: Unknown | G114: No | H114: No | I114: No
A115: Proband_183 | B115: Yes | C115: Both, no sperm | D115: No | E115: No sperm | F115: Unknown | G115: No | H115: No | I115: No
A116: Proband_184 | B116: Yes | C116: Both, no sperm | D116: No | E116: No sperm | F116: Unknown | G116: No | H116: No | I116: No
A117: Proband_185 | B117: Yes | C117: Both, no sperm | D117: No | E117: No sperm | F117: Unknown | G117: No | H117: No | I117: No

Sheet Table 3 Histology classificati
A1: Classification | B1: Definition
A2: Tubular shadow (TS) | B2: The complete absence of Sertoli and germ cells in the seminiferous epithelium.
A3: Sertoli cell only (SCO) | B3: Only Sertoli cells are present in tubules. Germ cells are completely absent.
A4: SCO/minimal-Germ Cell Arrest(mCGCA) | B4: Predominantly tubules in which only Sertoli cells are present. In addition, some tubules that do contain germ cells are observed. These germ cells are arrested prior to finalization of spermatogenesis.
A5: Germ Cell Arrest (GCA) | B5: Spermatogenesis is blocked at a certain stage prior to its finalization.
A6: GCA in spermatogonia
A7: GCA in meiosis
A8: GCA in spermiogenesis
A9: Hypospermatogenesis (HS) | B9: Tubules that only contain Sertoli cells are present in addition to tubules that contain all stages of spermatogenesis.
A10: HS-mild
A11: HS-severe
A12: HS-partial Germ Cell Arrest | B12: Tubules that show normal, unperturbed spermatogenesis are present, in addition to tubules that show a germ cell arrest.
A13: Complete Spermatogenesis (CS) | B13: The majority of tubules contains all stages of spermatogenesis.

Sheet Table 4 Pathology notes
A1: ID | B1: Conclusion histology left | C1: Conclusion histology right | D1: Overall conclusion histology | E1: Conclusion cytology left | F1: Conclusion cytology right | G1: Overall conclusion cytology | H1: Spermatozoa in cell suspension biopsy | I1: Diagnosis semen analysis | J1: Description of spermatogenesis in proband | K1: Overall conclusion | L1: Detailed conclusion
A2: Proband_001 | B2: HS-severe | C2: NP | D2: HS-severe | E2: HS | F2: NP | G2: HS | H2: No | I2: Azoospermia | J2: Both histological sections and cytological preparations indicated hypospermatogenesis. Predominantly (~95%) tubules containing Sertoli cells only were present, occasionally tubules did contain complete spermatogenesis. | K2: HS | L2: HS-severe
A3: Proband_002 | B3: SCO | C3: SCO | D3: SCO | E3: SCO/minimal GCA | F3: SCO/minimal GCA | G3: SCO/minimal GCA | H3: No | I3: Azoospermia | J3: No tubules containing germ cells were observed in the histological sections. However a small number of spermatocytes were observed in the cytological preparations. No spermatozoa were observed in any of the three types of testicular preparations. | K3: SCO/minimal GCA | L3: SCO/minimal GCA
A4: Proband_003 | B4: HS-severe | C4: HS-mild | D4: HS-mild | E4: SCO | F4: CS | G4: SCO/CS | H4: Yes | I4: Extreme oligozoospermia | J4: Both biopsies used for histology showed a reduced level of spermatogenesis and extensive hyalinization. In the left biopsy only ~10% of the tubules showed elongating spermatids whereas on the right side this was ~30%. | K4: HS | L4: HS-mild
A5: Proband_004 | B5: SCO | C5: SCO | D5: SCO | E5: SCO | F5: SCO | G5: SCO | H5: no | I5: Azoospermia | J5: A complete lack of germ cells was observed in both biopsies while Sertoli cells were present. This was confirmed by cytology. | K5: SCO | L5: SCO
A6: Proband_005 | B6: SCO | C6: SCO | D6: SCO | E6: SCO | F6: SCO | G6: SCO | H6: No | I6: Azoospermia | J6: No germ cells were observed in any of the three types of testicular preparations. | K6: SCO | L6: SCO
A7: Proband_006 | B7: GCA in meiosis | C7: GCA in meiosis | D7: GCA in meiosis | E7: SCO/minimal GCA | F7: SCO/minimal GCA | G7: SCO/minimal GCA | H7: No | I7: Azoospermia | J7: Histology preparations showed a complete maturation arrest at the spermatocyte stage. The number of germ cells with respect to Sertoli cells was decreased according to cytology, though histological sections did not indicate tubules completely devoid of germ cells. | K7: GCA | L7: GCA-meiosis
A8: Proband_007 | B8: SCO | C8: SCO | D8: SCO | E8: SCO | F8: NA | G8: SCO | H8: No | I8: Azoospermia | J8: No germ cells were observed in any of the three types of testicular preparations. Cytological preparation of one biopsy was unavailable. | K8: SCO | L8: SCO
A9: Proband_008 | B9: SCO | C9: SCO | D9: SCO | E9: SCO | F9: SCO | G9: SCO | H9: No | I9: Azoospermia | J9: No germ cells were observed in any of the three types of testicular preparations. | K9: SCO | L9: SCO
A10: Proband_009 | B10: SCO | C10: NP | D10: SCO | E10: SCO | F10: NP | G10: SCO | H10: no | I10: Azoospermia | J10: A complete lack of germ cells was observed in this biopsy while Sertoli cells were present. This was confirmed by cytology. | K10: SCO | L10: SCO
A11: Proband_010 | B11: SCO | C11: NP | D11: SCO | E11: NA | F11: NP | G11: - | H11: No | I11: Azoospermia | J11: No germ cells were observed in histological preparations nor in the biopsy-derived cell suspension. Cytological preparations were unavailable. | K11: SCO | L11: SCO
A12: Proband_011 | B12: SCO | C12: SCO | D12: SCO | E12: SCO | F12: SCO | G12: SCO | H12: no | I12: Azoospermia | J12: A complete lack of germ cells was observed in both biopies while Sertoli cells were present. This was confirmed by cytology. | K12: SCO | L12: SCO
A13: Proband_012 | B13: NP | C13: CS | D13: CS | E13: NP | F13: pGCA | G13: pGCA | H13: Yes | I13: Extreme oligozoospermia | J13: Histological sections showed that 75% of the tubules contained ES. Frequently germ cell devoid patches in the epithelium were observed. The cytological analysis indicated a partial maturation arrest. | K13: CS | L13: CS
A14: Proband_013 | B14: SCO | C14: SCO | D14: SCO | E14: SCO | F14: SCO | G14: SCO | H14: No | I14: Azoospermia | J14: No germ cells were observed in any of the three types of testicular preparations. | K14: SCO | L14: SCO
A15: Proband_014 | B15: NP | C15: SCO | D15: SCO | E15: NP | F15: SCO | G15: SCO | H15: No | I15: Azoospermia | J15: No germ cells were observed in any of the three types of testicular preparations. | K15: SCO | L15: SCO
A16: Proband_015 | B16: SCO | C16: SCO | D16: SCO | E16: SCO | F16: SCO | G16: SCO | H16: No | I16: Azoospermia | J16: No germ cells were observed in any of the three types of testicular preparations. | K16: SCO | L16: SCO
A17: Proband_016 | B17: NP | C17: SCO | D17: SCO | E17: NP | F17: SCO | G17: SCO | H17: no | I17: Azoospermia | J17: A complete lack of germ cells was observed in this biopsy while Sertoli cells were present. This was confirmed by cytology. | K17: SCO | L17: SCO
A18: Proband_017 | B18: HS-severe | C18: NA | D18: HS-severe | E18: HS + pGCA | F18: NA | G18: HS + pGCA | H18: Yes | I18: Azoospermia | J18: Only a crushed biopsy from the left testis was available for analysis. In these histological sections a mix of tubules devoid of germ cells (~90%) and tubules containing complete spermatogenesis was observed. Cytological analysis also indicated a starkly decreased number of germ cells (spermatocytes and spermatozoa) in respect to Sertoli cells, which fits with the observed HS in histological sections. In addition the spermatocyte/spermatozoa ratio was suggestive for a partial maturation arrest. | K18: HS | L18: HS-severe
A19: Proband_018 | B19: HS-severe | C19: NP | D19: HS-severe + tubular hyalinization | E19: SCO/minimal GCA | F19: NP | G19: SCO/minimal GCA | H19: Yes | I19: Extreme oligozoospermia | J19: Limited power of histological analysis due to poor structural conservation of biopsy. Some germ cells were observed in histological sections and cytological preparations. Spermatozoa were present in the cell suspension. | K19: HS | L19: HS-severe
A20: Proband_019 | B20: SCO | C20: NP | D20: SCO | E20: SCO | F20: NP | G20: SCO | H20: No | I20: Azoospermia | J20: Quality of histological sections was poor due to crushing of biopsy. No germ cells were observed in any of the three types of testicular preparations. | K20: SCO | L20: SCO
A21: Proband_020 | B21: NP | C21: NA | D21: - | E21: NP | F21: SCO | G21: SCO | H21: Yes | I21: Azoospermia | J21: No biopsy was availbale for histological analysis. The cytological preparation showed presence of only Sertoli cells suggesting SCO. However, some spermatozoa were seen during inspection of the biopsy-derived cell suspension though, indicative of hypospermatogenesis. | K21: HS | L21: HS-severe
A22: Proband_021 | B22: SCO | C22: NP | D22: SCO | E22: SCO | F22: NP | G22: SCO | H22: No | I22: Azoospermia | J22: No germ cells were observed in testicular preparations or in the biopsy-derived cell suspension. | K22: SCO | L22: SCO
A23: Proband_022 | B23: NP | C23: NA | D23: - | E23: NP | F23: SCO | G23: SCO | H23: No | I23: Azoospermia | J23: No biopsy was availbale for histological evaluation. Germ cells were absent from the cytological preparation and the biopsy-derived cell suspension. | K23: SCO | L23: SCO
A24: Proband_023 | B24: HS-severe | C24: NP | D24: HS-severe | E24: NA | F24: NP | G24: - | H24: Yes | I24: Azoospermia | J24: Apart from numerous (~90%) tubules devoid of any germ cells, some tubules containing complete or incomplete spermatogenesis were also observed. When arrest occurred this was in spermatocytes. Cytological preparations were unavailable. | K24: HS | L24: HS-severe
A25: Proband_024 | B25: NA | C25: NA | D25: - | E25: HS | F25: NA | G25: HS | H25: Yes | I25: Azoospermia | J25: Histological sections were not available. Spermatozoa and meiotic cells were observed in the cytological preparation though both their numbers were low. | K25: HS | L25: HS-severe
A26: Proband_025 | B26: HS-severe | C26: SCO | D26: HS-severe | E26: SCO/minimal GCA | F26: SCO | G26: SCO/minimal GCA | H26: Yes | I26: Azoospermia | J26: Only histological sections of crushed biopsies available. The left biopsy predominantly (~95%) showed germ cell-devoid tubules. However, pockets of tubules containing complete spermatogenesis were observed. In the sections from the right bipsy no germ cells were observed. In the cytological preparation of the left biopsy a small number of spermatocytes was observed, though no spermatozoa. Spermatozoa were observed in the cell suspension. In the cytological preparation of the 2nd testicle no germ cells were observed. | K26: HS | L26: HS-severe
A27: Proband_026 | B27: NP | C27: HS-pGCA | D27: HS-pGCA | E27: NP | F27: HS | G27: HS | H27: Yes | I27: Azoospermia | J27: Histological evaluation showed both tubules with complete spermatogenesis (45%) as well as tubules in which meiotic cells and spermatids were absent. The cytological evaluation indicated a loss of germ cells in relation to Sertoli cells. | K27: HS | L27: HS-pGCA
A28: Proband_027 | B28: HS-pGCA | C28: NP | D28: HS-pGCA | E28: pGCA | F28: NP | G28: pGCA | H28: Yes | I28: Azoospermia | J28: Histological examination indicated that ~45% of the tubules contained complete spermatogenesis. However several tubules showed an absence of spermatids. Patches without germ cells were frequently present in the epithelium. Spermatocyte-spermatozoa ratio in the cytological prepartion was also indicative for a partial maturation arrest. | K28: HS | L28: HS-pGCA
A29: Proband_028 | B29: GCA-spermatogonia | C29: GCA-spermatogonia | D29: GCA-spermatogonia | E29: SCO/minimal GCA | F29: SCO/minimal GCA | G29: SCO/minimal GCA | H29: yes | I29: Extreme oligozoospermia | J29: Extensive hyalinization was observed in both biopsies. In all tubules germ cells were present but in most of them only as spermatogonia. Infrequently some spermatocytes but no spermatids were observed. This was confirmed by cytology. In the TESE sample analysed for cryopreservation, however, spermatozoa were observed. | K29: HS | L29: HS-severe
A30: Proband_029 | B30: NP | C30: SCO | D30: SCO | E30: NP | F30: SCO/minimal GCA | G30: SCO/minimal GCA | H30: No | I30: Azoospermia | J30: None of the tubules observed in the histological sections contained germ cells. However, a small number of spermatocytes was observed in the cytological preparations. No spermatozoa were detected in any of the three types of testicular preparations. | K30: SCO/minimal GCA | L30: SCO/minimal GCA
A31: Proband_030 | B31: HS | C31: NP | D31: HS-mild | E31: CS | F31: NP | G31: CS | H31: yes | I31: Extreme oligozoospermia | J31: Only testis scrapes were available for analysis. Disorted tubules with and without content were observed. Cytology indicated complete spermatogenesis. | K31: HS | L31: HS-mild
A32: Proband_031 | B32: SCO | C32: SCO | D32: SCO | E32: SCO/minimal GCA | F32: NA | G32: SCO/minimal GCA | H32: yes | I32: Azoospermia | J32: Only testis scrapes were available for analysis. No germ cells were observed in the distorted tubules while in the cytology sample some spermatocytes were observed. In the TESE sample analysed for cryopreservation, however, spermatozoa were observed. | K32: HS | L32: HS-severe
A33: Proband_032 | B33: SCO/minimal GCA | C33: CS | D33: CS | E33: HS | F33: CS | G33: CS | H33: Yes | I33: Azoospermia | J33: Status of spermatogenesis varied greatly between the two testes. The right biopsy consisted mainly (~75%) of tubules that contained ES whereas in the biopsy of the left side, predominantly germ cell-devoid tubules, sometimes with spermatogonia and less frequently with spermatocytes were observed. The cytological preparation confirmed complete spermatogenesis in the right biopsy. In cytological slide of the left biopsy one spermatozoa was detected, indicating HS instead of GCA. | K33: CS | L33: CS
A34: Proband_033 | B34: NP | C34: NA | D34: - | E34: NP | F34: SCO | G34: SCO | H34: No | I34: Azoospermia | J34: Histology preparations were unavailable. No germ cells were observed in testicular preparation (based on cytology only) or in the biopsy-derived cell suspension. | K34: SCO | L34: SCO
A35: Proband_034 | B35: SCO | C35: NA | D35: SCO | E35: SCO | F35: SCO | G35: SCO | H35: No | I35: Azoospermia | J35: No germ cells were observed in any of the three types of testicular preparations. Histological sections of the right biopsy were absent. | K35: SCO | L35: SCO
A36: Proband_035 | B36: HS-pGCA | C36: NA | D36: HS-pGCA + tubular hyalinization | E36: HS | F36: NA | G36: HS | H36: Yes | I36: Azoospermia | J36: Only one testis biopsy was available for analysis. Histological sections showed extensive hyalinization of the tubules. A mix of tubules devoid of germ cells and tubules containing complete or incomplete spermatogenesis was observed. When the germ cell population was arrested this was during meiosis. Cytological analysis indicated a starkly decreased number of germ cells in respect to Sertoli cells. Number of spermatocytes and spermatozoa were too low to distinguish HS from pGCA. | K36: HS | L36: HS-pGCA
A37: Proband_036 | B37: SCO | C37: NP | D37: SCO | E37: SCO | F37: NP | G37: SCO | H37: no | I37: Azoospermia | J37: A complete lack of germ cells was observed in this biopsy while Sertoli cells were present. This was confirmed by cytology. | K37: SCO | L37: SCO
A38: Proband_037 | B38: NP | C38: HS-pGCA | D38: HS-pGCA | E38: NP | F38: pGCA | G38: pGCA | H38: Yes | I38: Azoospermia | J38: Frequently tubules that show meiotic arrest in addition to tubules with complete spermatogenesis were observed in the histological sections. The cytological data also indicated a p-MA. | K38: HS | L38: HS-pGCA
A39: Proband_038 | B39: NA | C39: NP | D39: - | E39: HS | F39: NP | G39: HS | H39: Yes | I39: Azoospermia | J39: No biopsy was available for histological analysis. The cytological preparation predominantly showed Sertoli cells, though a small number of spermatocytes and one spermatozoa were observed. | K39: HS | L39: HS-severe
A40: Proband_039 | B40: SCO | C40: SCO | D40: SCO | E40: SCO | F40: NA | G40: SCO | H40: Yes | I40: Azoospermia | J40: No germ cells were observed in either histological or cytological preparations. However, some spermatozoa were seen during inspection of the biopsy-derived cell suspension, though indicative of hypospermatogenesis. | K40: HS | L40: HS-severe
A41: Proband_040 | B41: NP | C41: NA | D41: - | E41: NP | F41: HS + pGCA | G41: HS | H41: yes | I41: Azoospermia | J41: No histology sample was available. In the cytology sample spermatoza were observed to such an extend that suggested HS-mild. This was also the case in the biopsy analysed for cryopreservation. | K41: HS | L41: HS-mild
A42: Proband_041 | B42: HS-severe | C42: NP | D42: HS-severe | E42: HS + pGCA | F42: NP | G42: HS + pGCA | H42: yes | I42: Azoospermia | J42: The biopsy was damaged during processing. In some tubules germ cells are present and in a subset of these as elongating spermatids. Predominantly tubules with only Sertoli cells were present. In addition, extensive hyalinization was noted. A limited number of spermatozoa was observed in the cytology preparation. | K42: HS | L42: HS-severe
A43: Proband_042 | B43: SCO + hyalinization | C43: SCO + hyalinization | D43: SCO + hyalinization | E43: SCO | F43: SCO | G43: SCO | H43: No | I43: Azoospermia | J43: No germ cells were observed in any of the three types of testicular preparations. | K43: SCO | L43: SCO
A44: Proband_043 | B44: NA | C44: NP | D44: - | E44: HS + pGCA | F44: NP | G44: HS + pGCA | H44: yes | I44: Azoospermia | J44: No histology sample was available. In the cytology sample spermatoza were observed to such an extend that suggested HS-severe. This was also the case in the biopsy analysed for cryopreservation. | K44: HS | L44: HS-severe
A45: Proband_044 | B45: NA | C45: NP | D45: - | E45: HS | F45: NP | G45: HS | H45: no | I45: Azoospermia | J45: No histology sample was available. In the cytology sample spermatoza were observed to such an extend that suggested HS-severe. In the biopsy analysed for cryopreservation no spermatozoa were detected. | K45: HS | L45: HS-severe
A46: Proband_045 | B46: NP | C46: NA | D46: - | E46: NP | F46: SCO | G46: SCO | H46: No | I46: Azoospermia | J46: Only the cytological preparation was available, herein no germ cells were observed. During inspection of the biopsy-derived cell suspension no spermatozoa were observed either. | K46: SCO | L46: SCO
A47: Proband_046 | B47: NA | C47: CS | D47: CS | E47: SCO/minimal GCA | F47: CS | G47: CS | H47: Yes | I47: Azoospermia | J47: No histological sections of left testes available. Quality of histological sections of right side was low due to crushing of the biopsy. In this biopsy 80% of the tubules contained ES. In addition, also tubules in which germ cells were absent were observed. This was confirmed by the cytological preparation. In the cytological preparation of the left bipsy only a small number of spermatocytes were observed. | K47: CS | L47: CS
A48: Proband_047 | B48: SCO | C48: SCO | D48: SCO | E48: SCO | F48: SCO | G48: SCO | H48: no | I48: Azoospermia | J48: A complete lack of germ cells was observed in both biopsies while Sertoli cells were present. This was confirmed by cytology. | K48: SCO | L48: SCO
A49: Proband_048 | B49: HS-pGCA | C49: GCA | D49: HS-pGCA | E49: HS | F49: HS | G49: HS | H49: No | I49: Extreme oligozoospermia | J49: Predominantly germ cell devoid-tubules were observed in the histological sections. Pockets of tubules containing complete or incomplete spermatogenesis were observed in the left biopsy. Only arrested spermatogenesis was observed in the right biopsy. The arrest of spermatogenesis was predominantly occuring prior to meiosis. The number of spermatocytes and spermatozoa counted in the cytological preparations were too low to distinguish HS from p-MA. | K49: HS | L49: HS-pGCA
A50: Proband_053 | B50: NP | C50: HS-severe | D50: HS-severe | E50: NP | F50: HS-pGCA | G50: HS-pGCA | H50: Yes | I50: Extreme oligozoospermia | J50: Histological sections showed ~95% of tubules to contain only Sertoli cells. Occasionally, the epithelium did contain the complete germ cell compartment. The spermatocyte-spermatozoa ratio in the cytological preparations indicated a mild partial arrest and reduced number of spermatozoa per Sertoli cell. | K50: HS | L50: HS-severe
A51: Proband_059 | B51: SCO | C51: SCO | D51: SCO | E51: SCO | F51: SCO | G51: SCO | H51: No | I51: Azoospermia | J51: No germ cells were observed in any of the three types of testicular preparations. | K51: SCO | L51: SCO
A52: Proband_060 | B52: GCA-spermiogenesis | C52: GCA-spermiogenesis | D52: GCA-spermiogenesis | E52: NA | F52: NA | G52: - | H52: No | I52: Azoospermia | J52: Cytological preparations were absent. Histological sections consistantly showed an arrest prior to spermatid elongation. | K52: GCA | L52: GCA-spermiogenesis
A53: Proband_061 | B53: SCO/minimal GCA | C53: HS-pGCA | D53: HS-pGCA | E53: NA | F53: NA | G53: - | H53: Yes | I53: Azoospermia | J53: Cytological preparations were absent. In the histological sections tubules devoid of germ cells were observed in both biopsies although not in equal degree. In the right side biopsy, tubules with complete spermatogenesis and tubules with a maturation arrest predominantly in early meiosis were obsered whereas the left side biopsy showed predominantly Sertoli cell only tubules and occasionally tubules with spermatogenesis arrested in meiosis. | K53: HS | L53: HS-pGCA
A54: Proband_063 | B54: HS-severe | C54: HS-severe | D54: HS-severe | E54: SCO | F54: HS | G54: HS | H54: Yes | I54: Extreme oligozoospermia | J54: Histological sections showed frequent presence of tubules that contained only Sertoli cells (>95%). However, patches of complete spermatogenesis were occasionally observed. | K54: HS | L54: HS-severe
A55: Proband_065 | B55: HS-pGCA | C55: HS-pGCA | D55: HS-pGCA | E55: SCO | F55: SCO | G55: SCO | H55: Yes | I55: Azoospermia | J55: In histological sections tubules the germ cell population consisted predominantly of spermatogonia or very early meiotic cells. However, in both biopsies 1-2 tubules with signs of complete spermatogenesis were seen. No spermatocytes or spermatozoa were seen in the cytology preparations. The biopsy-derived cell suspension, however, contained spermatozoa. | K55: HS | L55: HS-pGCA
A56: Proband_069 | B56: NA | C56: NA | D56: - | E56: NA | F56: NA | G56: - | H56: yes | I56: Extreme oligozoospermia | J56: No histology or cytology samples were available. The TESE biopsy contained enough spermatozoa for the ICSI procedure but not enough for cryopreservation. Based on this the sample was classified as HS-severe. | K56: HS | L56: HS-severe
A57: Proband_070 | B57: HS-severe | C57: CS | D57: CS | E57: NA | F57: NA | G57: - | H57: Yes | I57: Azoospermia | J57: The left biopsy showed many hyalinzed tubules. In tubules with active spermatogenesis the density of cells was greatly reduced. The right-side biopsy predominantly contained tubules that showed normal spermatogenesis. However, frequently a reduced density of cells was in the epithelium was observed. Number of cells on the cytology slides was too low for quantification | K57: CS | L57: CS
A58: Proband_077 | B58: HS-mild | C58: NP | D58: HS-mild | E58: HS + pGCA | F58: NP | G58: HS + pGCA | H58: yes | I58: Extreme oligozoospermia | J58: Less than 30 tubules are available for analysis. Several of these show all stages of germ cells while other tubules only contain Sertoli cells. The cytology preparation indicated presence of all stages of germ cells. | K58: HS | L58: HS-mild
A59: Proband_079 | B59: NP | C59: HS-mild | D59: HS-mild | E59: NP | F59: SCO/minimal GCA | G59: SCO/minimal GCA | H59: Yes | I59: Azoospermia | J59: Around 40% of the tubules contained complete spermatogenesis while the remaining ones showed a lack of germ cells. The cytological preparation indicated an extremely reduced germ cell number with respect to Sertoli cells. | K59: HS | L59: HS-mild
A60: Proband_083 | B60: CS | C60: CS | D60: CS | E60: p-GCA | F60: p-GCA | G60: p-GCA | H60: Yes | I60: Azoospermia | J60: In the histological sections 75% of the tubules contained ES. However, patches in the seminiferous epithelium with reduced numbers of germ cells were also observed. The cytological analysis indicated a loss of spermatozoa numbers. | K60: CS | L60: CS
A61: Proband_086 | B61: HS-pGCA | C61: HS-pGCA | D61: HS-pGCA | E61: HS + pGCA | F61: HS + pGCA | G61: HS + pGCA | H61: yes | I61: Azoospermia | J61: Histology showed severly thinned epithelium in both biopsies. All types of germ cells were present, though tubules showing spermatocytes and spermatids were starkly reduced. The arrest phenotype was also observed in the cytology preparations. | K61: HS | L61: HS-pGCA
A62: Proband_089 | B62: SCO/minimal GCA | C62: SCO/minimal GCA | D62: SCO/minimal GCA | E62: SCO | F62: SCO/minimal GCA | G62: SCO/minimal GCA | H62: no | I62: Azoospermia | J62: In both biopsies most tubules only contained Sertoli cells. Some tubules, however contained spermatogonia though spermatocytes were not observed. In the cytology preparation of the right side some spermatocytes were detected. A striking increased width of the basal lamine in many tubules was noted. | K62: SCO/minimal GCA | L62: SCO/minimal GCA
A63: Proband_090 | B63: NA | C63: NA | D63: - | E63: NA | F63: NA | G63: - | H63: Yes | I63: Extreme oligozoospermia | J63: No biopsy for histology was taken and no cytological slides were made. Spermatozoa were observed in the biopsy-derived cell suspension. | K63: Unknown | L63: Unknown
A64: Proband_092 | B64: SCO | C64: SCO | D64: SCO | E64: SCO | F64: SCO | G64: SCO | H64: No | I64: Azoospermia | J64: No germ cells were observed in any of the three types of testicular preparations. | K64: SCO | L64: SCO
A65: Proband_095 | B65: NP | C65: NA | D65: - | E65: NP | F65: pGCA | G65: pGCA | H65: Yes | I65: Azoospermia | J65: No biopsy was availbale for histological analysis. The cytological preparation showed a normal ratio of spermatozoa and Sertoli cells but the spermatocyte/spermatozoa ratio was suggestive for a mild partial maturation arrest. | K65: HS | L65: HS-pGCA
A66: Proband_096 | B66: HS-pGCA | C66: HS-pGCA | D66: HS-pGCA | E66: HS | F66: HS | G66: HS | H66: Yes | I66: Extreme oligozoospermia | J66: Histological evaluation showed that the majority of the tubules were arrested the spermatocyte state. Some tubules, however, did contain complete spermatogenesis. Cytological evaluation indicated a loss of germ cells in respect to Sertoli cells. Germ cells number were too low to distinguish p-MA from HS. | K66: HS | L66: HS-pGCA
A67: Proband_097 | B67: CS | C67: NP | D67: CS | E67: CS | F67: NP | G67: CS | H67: yes | I67: Azoospermia | J67: Most tubules contain elongating spermatids. Several tubules show a thinned epitithelium. This was confirmed by the cytology preparations. | K67: CS | L67: CS
A68: Proband_106 | B68: SCO | C68: SCO | D68: SCO | E68: NA | F68: NA | G68: - | H68: No | I68: Azoospermia | J68: All observed tubules in both biopsies were devoid of germ cells, also in the biopsy-derived cell suspension no spermatozoa were observed. Cytological preparations were unavailable. | K68: SCO | L68: SCO
A69: Proband_115 | B69: CS | C69: NA | D69: CS | E69: CS | F69: CS | G69: CS | H69: Yes | I69: Severe oligoasthenozoospermia | J69: The majority (90%) of the tubules observed in the histological sections contained complete spermatogenesis. The cytological preparations also indicated complete spermatogenesis. | K69: CS | L69: CS
A70: Proband_121 | B70: NP | C70: NA | D70: - | E70: NP | F70: pGCA | G70: pGCA | H70: yes | I70: Azoospermia | J70: Only cytology was availble for the description. Based on the number of spermatozoa observed the sample was classified as HS-mild | K70: HS | L70: HS-mild
A71: Proband_122 | B71: NP | C71: GCA | D71: GCA | E71: NP | F71: GCA | G71: GCA | H71: Yes | I71: Azoospermia | J71: In histology and cytology preparations spermatocytes were identified as being the most progressed germ cell stage. However, some spermatozoa were seen during inspection of the biopsy-derived cell suspension. | K71: HS | L71: HS-pGCA
A72: Proband_123 | B72: NA | C72: NA | D72: - | E72: HS + pGCA | F72: NA | G72: HS + pGCA | H72: yes | I72: Azoospermia | J72: No histology sample was available. In the cytology sample spermatoza were observed to such an extend that suggested HS-mild. This was also the case in the biopsy analysed for cryopreservation. | K72: HS | L72: HS-mild
A73: Proband_125 | B73: NA | C73: NA | D73: - | E73: NA | F73: NA | G73: - | H73: Yes | I73: Azoospermia | J73: TESE biopsy was performed elsewhere. | K73: Unknown | L73: Unknown
A74: Proband_128 | B74: HS-pGCA | C74: HS-pGCA | D74: HS-pGCA | E74: pGCA | F74: HS + pGCA | G74: pGCA | H74: Yes | I74: Azoospermia | J74: Histological sections frequently showed tubules with meiotic arrest in addition to tubules with complete spermatogenesis. This was supported by the cytological analysis. | K74: HS | L74: HS-pGCA
A75: Proband_129 | B75: SCO | C75: SCO | D75: SCO | E75: SCO | F75: NA | G75: SCO | H75: no | I75: Azoospermia | J75: A complete lack of germ cells was observed in both biopsies while Sertoli cells were present. This was confirmed by cytology. | K75: SCO | L75: SCO
A76: Proband_131 | B76: HS-severe | C76: SCO | D76: HS-severe | E76: HS | F76: SCO | G76: HS | H76: Yes | I76: Azoospermia | J76: Predominantly (95%) germ cell-devoid tubules were observed in the histological sections of the left biopsy, which showed pockets of tubules that contained complete spermatogenesis. In the biopsy from the other side no germ cells were seen. The frequency of spermatocytes and spermatozoa in the cytological preparation of the left biopsy were indicative for hypospermatogenesis. In the cytological preparation of the right biopsy no germ cells were observed. | K76: HS | L76: HS-severe
A77: Proband_132 | B77: HS-severe | C77: HS-severe | D77: HS-severe | E77: HS + pGCA | F77: HS | G77: HS | H77: Yes | I77: Azoospermia | J77: Both the histological sections as well as cytological preparations indicated hypospermatogenesis. Predominantly (~75%) tubules without germ cells were present in addition to some tubules that contained complete spermatogenesis. This was confirmed by the cytology preparations. The spermatocyte/spermatozoa ratio of the left biopsy indicated a partial maturation arrest. | K77: HS | L77: HS-severe
A78: Proband_134 | B78: HS-severe | C78: HS-severe | D78: HS-severe | E78: HS | F78: HS | G78: HS | H78: yes | I78: Extreme oligozoospermia | J78: The majority of tubules both in the left and right biopsy showed only Sertoli cells. Occasionaly tubules with germ cells were present. In a subset of these elongating spermatids were observed. The hypospermatogenesis was confirmed by the cytology preparations | K78: HS | L78: HS-severe
A79: Proband_137 | B79: HS-pGCA | C79: HS-pGCA | D79: HS-pGCA | E79: SCO/minimal GCA | F79: SCO/minimal GCA | G79: SCO/minimal GCA | H79: yes | I79: Azoospermia | J79: Histology showed severly thinned epithelium in both biopsies. Frequently tubules with spermatcytes as most progressed state were present. Occasionally elongating spermatids were observed. In comparison, the cytology preparation showed a lower number of germ cells and no spermatozoa were detected. | K79: HS | L79: HS-pGCA
A80: Proband_138 | B80: CS | C80: CS | D80: CS | E80: NA | F80: CS | G80: CS | H80: yes | I80: Severe oligozoospermia | J80: Most tubules contained elongating spermatids though several tubules showed a thinned epitithelium. Overall this was confirmed by the cytology preparation. | K80: CS | L80: CS
A81: Proband_140 | B81: HS-severe | C81: HS-severe | D81: HS-severe | E81: HS + pGCA | F81: HS | G81: HS | H81: yes | I81: Azoospermia | J81: The majority of tubules both in the left and right biopsy showed only Sertoli cells. Occasionaly tubules with all germ cells stages were present. Overall this was confirmed by the cytology preparations. | K81: HS | L81: HS-severe
A82: Proband_141 | B82: HS-pGCA | C82: HS-pGCA | D82: HS-pGCA | E82: CS | F82: CS | G82: CS | H82: yes | I82: Azoospermia | J82: Both biopsies showed numerous tubules that contained spermatocytes as most progressed stages. In some tubules further maturation occured and in a subset of these tubules elongated spermatids were also present. Extensive hyalinisation was noted. The cytology preparations indicated a complete spermatogenesis | K82: HS | L82: HS-pGCA
A83: Proband_142 | B83: CS | C83: NA | D83: CS | E83: HS | F83: NA | G83: HS | H83: yes | I83: Azoospermia | J83: Less than 30 tubules were available for analysis. Most of these showed normal to mildly reduced spermatogenesis. In some cases the epithelium was severely thinned and lacking in spermatids. The cytology preparation indicated a hypospermatogenesis. | K83: CS | L83: CS
A84: Proband_143 | B84: HS-severe | C84: SCO/minimal GCA | D84: HS-severe | E84: SCO | F84: SCO | G84: SCO | H84: yes | I84: Azoospermia | J84: Both biopsies predominantly showed tubules that only contained Sertoli cells. However, in the left biopsy some patches of complete spermatogenesis were observed whereas in the right biopsy in rare instances incomplete spermatogenesis was observed. In the cytology preparations no germ cells were observed. | K84: HS | L84: HS-severe
A85: Proband_144 | B85: CS | C85: HS-severe | D85: CS | E85: HS | F85: HS + pGCA | G85: HS | H85: Yes | I85: Azoospermia | J85: Quality of spermatogenesis varied largely between left and right biopsies. In the left biopsy the majority of the tubules contained complete spermatogenesis although germ cell number did appear reduced in the epithelium. In the right biopsy germ cell-devoid tubules were predominantly observed while pockets of tubules containing spermatogenesis only occasionally. | K85: CS | L85: CS
A86: Proband_148 | B86: SCO | C86: SCO | D86: SCO | E86: SCO | F86: SCO | G86: SCO | H86: no | I86: Azoospermia | J86: A complete lack of germ cells was observed in both biopsies while Sertoli cells were present. This was confirmed by cytology. | K86: SCO | L86: SCO
A87: Proband_149 | B87: SCO | C87: SCO | D87: SCO | E87: NA | F87: NA | G87: - | H87: yes | I87: Azoospermia | J87: A complete lack of germ cells was observed in both biopsies while Sertoli cells were present. No cytology preparations were available. Spermatozoa were obseved in the sample prepared for cryopreservation. | K87: HS | L87: HS-severe
A88: Proband_150 | B88: SCO | C88: SCO | D88: SCO | E88: SCO/minimal GCA | F88: SCO/minimal GCA | G88: SCO/minimal GCA | H88: no | I88: Azoospermia | J88: A complete lack of germ cells was observed in this biopsy while Sertoli cells were present. However, some spermatocytes were observed in the cytology preparations. | K88: SCO/minimal GCA | L88: SCO/minimal GCA
A89: Proband_151 | B89: SCO/minimal-GCA | C89: SCO/minimal-GCA | D89: SCO/minimal GCA | E89: SCO/minimal MA | F89: SCO/minimal MA | G89: SCO/minimal MA | H89: No | I89: Azoospermia | J89: In the histological sections tubules devoid of germ cells were predominantly present. However, occasionally spermatocytes were observed. This was corroborated by the cytological analysis. | K89: SCO/minimal GCA | L89: SCO/minimal GCA
A90: Proband_152 | B90: GCA in spermiogenesis | C90: GCA in spermiogenesis | D90: GCA-round spermatid | E90: CS, spermatid morphology aberrant | F90: CS, spermatid morphology aberrant | G90: CS, spermatid morphology aberrant | H90: No | I90: Azoospermia | J90: Uniform maturation arrest in spermiogenesis. Spermatids arrested prior to elongation. | K90: GCA | L90: GCA-spermiogenesis
A91: Proband_153 | B91: SCO | C91: SCO | D91: SCO | E91: SCO | F91: SCO/minimal MA | G91: SCO/minimal MA | H91: Yes | I91: Azoospermia | J91: No germ cells were obsered in the histological preparations. The cytological analysis showed that spermatocytes were present in the right-side biopsy but a completely lacked in the left-side biopsy. Howevere, spermatozoa were seen during inspection of the biopsy-derived cell suspension, indicating hypospermatogenesis. | K91: HS | L91: HS-severe
A92: Proband_155 | B92: SCO | C92: SCO | D92: SCO | E92: SCO | F92: SCO | G92: SCO | H92: yes | I92: Azoospermia | J92: A complete lack of germ cells was observed in both biopsies while Sertoli cells were present. This was confirmed by the cytology preparations. However, spermatozoa were obseved in the sample prepared for cryopreservation. | K92: HS | L92: HS-severe
A93: Proband_156 | B93: SCO | C93: SCO | D93: SCO | E93: HS | F93: SCO/minimal GCA | G93: HS | H93: no | I93: Azoospermia | J93: A complete lack of germ cells was observed in both biopsies while Sertoli cells were present. The cytology preparations, however, indicated hypospermatogenesis. No spermatozoa were obseved in the sample prepared for cryopreservation. | K93: HS | L93: HS-severe
A94: Proband_157 | B94: SCO | C94: SCO | D94: SCO | E94: SCO/minimal GCA | F94: SCO/minimal GCA | G94: SCO/minimal GCA | H94: no | I94: Azoospermia | J94: A complete lack of germ cells was observed in this biopsy while Sertoli cells were present. However, some spermatocytes were observed in the cytology preparations. | K94: SCO/minimal GCA | L94: SCO/minimal GCA
A95: Proband_159 | B95: SCO | C95: SCO | D95: SCO | E95: NA | F95: NA | G95: - | H95: yes | I95: Azoospermia | J95: A complete lack of germ cells was observed in both biopsies while Sertoli cells were present. No cytology preparations were available. Spermatozoa were obseved in the sample prepared for cryopreservation. | K95: HS | L95: HS-severe
A96: Proband_160 | B96: GCA-meiotic | C96: GCA-meiotic | D96: GCA-meiotic | E96: SCO | F96: SCO/minimal GCA | G96: SCO/minimal GCA | H96: no | I96: Azoospermia | J96: In both biopsies the epithelium of all tubules was severely thinned. In most tubules some spermatocytes were observed though in some only spermatogonia. The reduced numbers were confirmed by the cytology preparations. | K96: GCA | L96: GCA-meiotic
A97: Proband_161 | B97: SCO | C97: SCO | D97: SCO | E97: SCO | F97: SCO | G97: SCO | H97: no | I97: Azoospermia | J97: A complete lack of germ cells was observed in both biopsies while Sertoli cells were present. This was confirmed by cytology. | K97: SCO | L97: SCO
A98: Proband_162 | B98: GCA-round spermatid | C98: NP | D98: GCA-round spermatid | E98: NA | F98: CS | G98: CS (abberent spermatid morphology) | H98: no | I98: Extreme oligozoospermia | J98: In this biopsy spermatogenesis was arrested at the round spermatid stage. No elongated spermatids were observed in the cytology preparations, instead condensed round spermatids were quantified. | K98: GCA | L98: GCA-round spermatid
A99: Proband_163 | B99: HS-severe | C99: HS-severe | D99: HS-severe | E99: HS | F99: HS | G99: HS | H99: yes | I99: Azoospermia | J99: Both biopsies predominantly showed tubules that only contained Sertoli cells. In some tubules all stages of spermatogenesis were observed but always in diminished density. Several tubules were completely hyalinised. This was overall confirmed by the cytology preparations. | K99: HS | L99: HS-severe
A100: Proband_164 | B100: HS-severe | C100: HS-severe | D100: HS-severe | E100: HS | F100: HS | G100: HS | H100: yes | I100: Azoospermia | J100: Both biopsies predominantly showed tubules that only contained Sertoli cells. In some tubules all stages of spermatogenesis were observed but always in diminished density. In another small subset of tubules only spermatogonia were present in addition to Sertoli cells. This was overall confirmed by the cytology preparations. | K100: HS | L100: HS-severe
A101: Proband_165 | B101: NP | C101: HS-pGCA | D101: HS-pGCA | E101: NP | F101: HS + pGCA | G101: HS + pGCA | H101: yes | I101: Extreme oligozoospermia | J101: In the biopsy all tubules contained germ cells. Some tubules presented with a meiotic arrest whereas in other tubules a round spermatid arrest was observed. However, patches of complete spermatogenesis were also infrequently observed. This was overall confirmed by the cytology preparations. | K101: HS | L101: HS-pGCA
A102: Proband_166 | B102: SCO | C102: SCO | D102: SCO | E102: SCO | F102: SCO | G102: SCO | H102: no | I102: Azoospermia | J102: A complete lack of germ cells was observed in both biopsies while Sertoli cells were present. This was confirmed by cytology. | K102: SCO | L102: SCO
A103: Proband_167 | B103: CS | C103: HS-severe | D103: CS | E103: CS | F103: HS | G103: CS | H103: yes | I103: Azoospermia | J103: In the left biopsy the majority of the tubules contain all stages of spermatogenesis. The density of germ cells in the epithelium is somewhat reduced. In the biopsy form the right side only a minority of the tubules contain traces of spermatogenesis. In addition, numurous tubules have undergone extensive hyalinization. This was overall confirmed by the cytology preparations. | K103: CS | L103: CS
A104: Proband_168 | B104: SCO | C104: HS-mild | D104: HS-mild | E104: HS | F104: CS | G104: CS | H104: yes | I104: Extreme oligozoospermia | J104: In the left biopsy no germ cells were present in the tubules whereas in the right biopsy a significant part of the tubules contained complete spermatogenesis. The cytology preparation of the left biopsy did not confirm the SCO phenotype. For the right side histology and cytology were congruent. | K104: CS | L104: CS
A105: Proband_169 | B105: HS-mild | C105: HS-mild | D105: HS-mild | E105: HS + pGCA | F105: HS + pGCA | G105: HS + pGCA | H105: yes | I105: Azoospermia | J105: In both biopsies elongating spermatids were regularly observed. The cytology preparations suggested a maturation arrest. | K105: HS | L105: HS-mild
A106: Proband_170 | B106: HS-mild | C106: GCA-spermatogonia | D106: HS-mild | E106: HS + pGCA | F106: HS | G106: HS + pGCA | H106: yes | I106: Azoospermia | J106: A stark difference was observed between both testis. The left biopsy showed normal spermatogenesis in ~45% of the tubules. The remainder of the tubules predominantly showed spermatogonia as most progressed stage. In the right biopsy only tubules with incomplete spermatogenesis were observed. Most tubules showed spermatogonia as the sole germ cell type, though spermatocytes were occasionally detected. These findings were reflected in the cytology preparations | K106: HS | L106: HS-Mild
A107: Proband_171 | B107: SCO | C107: SCO | D107: SCO | E107: NA | F107: NA | G107: - | H107: no | I107: Azoospermia | J107: A complete lack of germ cells was observed in both biopsies while Sertoli cells were present. Reduced tubule calibre and mild basal lamina thickening was noted. | K107: SCO | L107: SCO
A108: Proband_172 | B108: GCA-round spermatid | C108: GCA-round spermatid | D108: GCA-round spermatid | E108: NA | F108: NA | G108: - | H108: no | I108: Azoospermia | J108: In both biopsies spermatogenesis was arrested at the round spermatid stage in all viable tubules. | K108: GCA | L108: GCA-round spermatid
A109: Proband_173 | B109: SCO | C109: SCO | D109: SCO | E109: NA | F109: NA | G109: - | H109: yes | I109: Azoospermia | J109: A complete lack of germ cells was observed in both biopsies while Sertoli cells were present. Reduced tubule calibre and mild basal lamina thickening in most tubules was noted. | K109: HS | L109: HS-severe
A110: Proband_174 | B110: SCO | C110: SCO | D110: SCO | E110: NA | F110: NA | G110: - | H110: no | I110: Azoospermia | J110: A complete lack of germ cells was observed in both biopsies while Sertoli cells were present. | K110: SCO | L110: SCO
A111: Proband_175 | B111: 100% hyalinised tubules | C111: 100% hyalinised tubules | D111: SCO | E111: NA | F111: NA | G111: - | H111: no | I111: Azoospermia | J111: Right no viable tubules. Left germ cell neoplasia in situ in 3% tubules, remainder of tubules hyalinised. | K111: TS | L111: Tubular shadows
A112: Proband_176 | B112: SCO | C112: SCO | D112: SCO | E112: NA | F112: NA | G112: - | H112: yes | I112: Azoospermia | J112: A complete lack of germ cells was observed in both biopsies while Sertoli cells were present. Reduced tubule calibre and basal lamina thickening was noted. | K112: HS | L112: HS-severe
A113: Proband_179 | B113: SCO | C113: SCO/Minimal GCA | D113: SCO/minimal GCA | E113: NA | F113: NA | G113: - | H113: yes | I113: Azoospermia | J113: In both biopsies most tubules contained only Sertoli cells. Some tubules, however contained spermatogonia through to round spermatids; no elongated spermatids were identified. | K113: HS | L113: HS-severe
A114: Proband_180 | B114: SCO | C114: SCO/Minimal GCA | D114: SCO/minimal GCA | E114: NA | F114: NA | G114: - | H114: yes | I114: Azoospermia | J114: In both biopsies most tubules contained only Sertoli cells. Some tubules, however contained spermatogonia through to rounded spermatids; no elongated spermatids were identified. | K114: HS | L114: HS-severe
A115: Proband_182 | B115: SCO/Minimal GCA | C115: SCO/Minimal GCA | D115: SCO/minimal GCA | E115: NA | F115: NA | G115: - | H115: yes | I115: Azoospermia | J115: In both biopsies most tubules contained only Sertoli cells. Some tubules, however contained spermatogonia though to rounded spermatids; no elongated spermatids were identified. | K115: HS | L115: HS-severe
A116: Proband_183 | B116: HS-mild | C116: GCA-round spermatid | D116: HS-mild | E116: NA | F116: NA | G116: - | H116: no | I116: Azoospermia | J116: Germ cells are present in all tubules and in a subset of these as elongating spermatids (50%) | K116: HS | L116: HS-mild
A117: Proband_184 | B117: GCA-round spermatid | C117: GCA-round spermatid | D117: GCA-round spermatid | E117: NA | F117: NA | G117: - | H117: no | I117: Azoospermia | J117: Approximately 50% of the tubels lacked germ cells. In the tubules that contained germ cells the majority of these showed round spermatids. However, also tubules with earlier arrest were observed. | K117: GCA | L117: GCA-round spermatid
A118: Proband_185 | B118: SCO | C118: SCO | D118: SCO | E118: NA | F118: NA | G118: - | H118: no | I118: Azoospermia | J118: A complete lack of germ cells was observed in both biopsies while Sertoli cells were present. Reduced tubule calibre and mild basal lamina thickening was noted. | K118: SCO | L118: SCO

Sheet Table 5 Cytology data
A1: Patient ID | B1: Biopsy left side | E1: Ratio's left side | I1: Biopsy right side | K1: Ratio's left side
B2: Nr. Sertoli cells | C2: Nr. spermatocytes | D2: Nr. spermatozoa | E2: Spermatocytes/spermatozoa | F2: Spermatozoa/Sertoli cells*100 | G2: Conclusion | H2: Nr. Sertoli cells | I2: Nr. spermatocytes | J2: Nr. spermatozoa | K2: Spermatocytes/spermatozoa | L2: Spermatzoa/Sertoli cells*100 | M2: Conclusion
A3: Proband_001 | B3: 226 | C3: 3 | D3: 2 | E3: 1.5 | F3: 1 | G3: HS | H3: NP | I3: NP | J3: NP | K3: - | L3: - | M3: -
A4: Proband_002 | B4: 390 | C4: 12 | D4: 0 | E4: - | F4: - | G4: SCO/minimal GCA | H4: 389 | I4: 11 | J4: 0 | K4: - | L4: - | M4: SCO/minimal GCA
A5: Proband_003 | B5: 500 | C5: 0 | D5: 0 | E5: - | F5: - | G5: SCO | H5: 265 | I5: 55 | J5: 108 | K5: 0.5 | L5: =J5/H5*100 -> 41 | M5: CS
A6: Proband_004 | B6: 400 | C6: 0 | D6: 0 | E6: - | F6: - | G6: SCO | H6: 400 | I6: 0 | J6: 0 | K6: - | L6: - | M6: SCO
A7: Proband_005 | B7: 400 | C7: 0 | D7: 0 | E7: - | F7: - | G7: SCO | H7: 400 | I7: 0 | J7: 0 | K7: - | L7: - | M7: SCO
A8: Proband_006 | B8: 382 | C8: 18 | D8: 0 | E8: - | F8: - | G8: SCO/minimal GCA | H8: 380 | I8: 24 | J8: 0 | K8: - | L8: - | M8: SCO/minimal GCA
A9: Proband_007 | B9: 400 | C9: 0 | D9: 0 | E9: - | F9: - | G9: SCO | H9: NA | I9: NA | J9: NA | K9: - | L9: - | M9: -
A10: Proband_008 | B10: 400 | C10: 0 | D10: 0 | E10: - | F10: - | G10: SCO | H10: 400 | I10: 0 | J10: 0 | K10: - | L10: - | M10: SCO
A11: Proband_009 | B11: 400 | C11: 0 | D11: 0 | E11: - | F11: - | G11: SCO | H11: NP | I11: NP | J11: NP | K11: - | L11: - | M11: -
A12: Proband_010 | B12: NA | C12: NA | D12: NA | E12: - | F12: - | G12: - | H12: NP | I12: NP | J12: NP | K12: - | L12: - | M12: NA
A13: Proband_011 | B13: 400 | C13: 0 | D13: 0 | E13: - | F13: - | G13: SCO | H13: 400 | I13: 0 | J13: 0 | K13: - | L13: - | M13: SCO
A14: Proband_012 | B14: NP | C14: NP | D14: NP | E14: - | F14: - | G14: - | H14: 151 | I14: 183 | J14: 66 | K14: 2.8 | L14: 44 | M14: pGCA
A15: Proband_013 | B15: 400 | C15: 0 | D15: 0 | E15: - | F15: - | G15: SCO | H15: 400 | I15: 0 | J15: 0 | K15: - | L15: - | M15: SCO
A16: Proband_014 | B16: NP | C16: NP | D16: NP | E16: - | F16: - | G16: - | H16: 400 | I16: 0 | J16: 0 | K16: - | L16: - | M16: SCO
A17: Proband_015 | B17: 400 | C17: 0 | D17: 0 | E17: - | F17: - | G17: SCO | H17: 400 | I17: 0 | J17: 0 | K17: - | L17: - | M17: SCO
A18: Proband_016 | B18: NP | C18: NP | D18: NP | E18: - | F18: - | G18: - | H18: 400 | I18: 0 | J18: 0 | K18: - | L18: - | M18: SCO
A19: Proband_017 | B19: 379 | C19: 10 | D19: 11 | E19: 0.9 | F19: 3 | G19: HS + pGCA | H19: NA | I19: NA | J19: NA | K19: - | L19: - | M19: -
A20: Proband_018 | B20: 402 | C20: 18 | D20: 0 | E20: - | F20: - | G20: SCO/minimal GCA | H20: NP | I20: NP | J20: NP | K20: - | L20: - | M20: -
A21: Proband_019 | B21: 400 | C21: 0 | D21: 0 | E21: - | F21: - | G21: SCO | H21: NP | I21: NP | J21: NP | K21: - | L21: - | M21: -
A22: Proband_020 | B22: NP | C22: NP | D22: NP | E22: - | F22: - | G22: - | H22: 400 | I22: 0 | J22: 0 | K22: - | L22: - | M22: SCO
A23: Proband_021 | B23: 400 | C23: 0 | D23: 0 | E23: - | F23: - | G23: SCO | H23: NP | I23: NP | J23: NP | K23: - | L23: - | M23: -
A24: Proband_022 | B24: NP | C24: NP | D24: NP | E24: - | F24: - | G24: - | H24: 400 | I24: 0 | J24: 0 | K24: - | L24: - | M24: SCO
A25: Proband_023 | B25: NA | C25: NA | D25: NA | E25: - | F25: - | G25: - | H25: NP | I25: NP | J25: NP | K25: - | L25: - | M25: -
A26: Proband_024 | B26: 389 | C26: 7 | D26: 4 | E26: 1.8 | F26: 1 | G26: HS | H26: NA | I26: NA | J26: NA | K26: - | L26: - | M26: -
A27: Proband_025 | B27: 398 | C27: 5 | D27: 0 | E27: - | F27: - | G27: SCO/minimal GCA | H27: 200 | I27: 0 | J27: 0 | K27: - | L27: - | M27: SCO
A28: Proband_026 | B28: NP | C28: NP | D28: NP | E28: - | F28: - | G28: - | H28: 393 | I28: 5 | J28: 3 | K28: 1.7 | L28: 1 | M28: HS
A29: Proband_027 | B29: 132 | C29: 169 | D29: 125 | E29: 1.4 | F29: 95 | G29: pGCA | H29: NP | I29: NP | J29: NP | K29: - | L29: - | M29: -
A30: Proband_028 | B30: 381 | C30: 19 | D30: 0 | E30: - | F30: - | G30: SCO/minimal GCA | H30: 386 | I30: 15 | J30: 0 | K30: - | L30: - | M30: SCO/minimal GCA
A31: Proband_029 | B31: NP | C31: NP | D31: NP | E31: - | F31: - | G31: - | H31: 398 | I31: 2 | J31: 0 | K31: - | L31: - | M31: SCO/minimal GCA
A32: Proband_030 | B32: 219 | C32: 92 | D32: 89 | E32: =C32/D32 -> 1.0 | F32: =D32/B32*100 -> 41 | G32: CS | H32: NP | I32: NP | J32: NP | K32: - | L32: - | M32: -
A33: Proband_031 | B33: 398 | C33: 2 | D33: 0 | E33: - | F33: - | G33: SCO/minimal GCA | H33: 399 | I33: 1 | J33: 0 | K33: - | L33: - | M33: SCO/minimal GCA
A34: Proband_032 | B34: 382 | C34: 17 | D34: 1 | E34: 17 | F34: 0 | G34: HS | H34: 269 | I34: 56 | J34: 75 | K34: 0.7 | L34: 28 | M34: CS
A35: Proband_033 | B35: NP | C35: NP | D35: NP | E35: - | F35: - | G35: - | H35: 400 | I35: 0 | J35: 0 | K35: - | L35: - | M35: SCO
A36: Proband_034 | B36: 400 | C36: 0 | D36: 0 | E36: - | F36: - | G36: SCO | H36: 400 | I36: 0 | J36: 0 | K36: - | L36: - | M36: SCO
A37: Proband_035 | B37: 385 | C37: 9 | D37: 6 | E37: 1.5 | F37: 2 | G37: HS | H37: NA | I37: NA | J37: NA | K37: - | L37: - | M37: -
A38: Proband_036 | B38: 400 | C38: 0 | D38: 0 | E38: - | F38: - | G38: SCO | H38: NP | I38: NP | J38: NP | K38: - | L38: - | M38: -
A39: Proband_037 | B39: NP | C39: NP | D39: NP | E39: - | F39: - | G39: - | H39: 271 | I39: 68 | J39: 62 | K39: 1.1 | L39: 23 | M39: pGCA
A40: Proband_038 | B40: 388 | C40: 10 | D40: 1 | E40: 10 | F40: 0 | G40: HS | H40: NP | I40: NP | J40: NP | K40: - | L40: - | M40: -
A41: Proband_039 | B41: 400 | C41: 0 | D41: 0 | E41: - | F41: - | G41: SCO | H41: NA | I41: NA | J41: NA | K41: - | L41: - | M41: -
A42: Proband_040 | B42: NP | C42: NP | D42: NP | E42: - | F42: - | G42: - | H42: 367 | I42: 36 | J42: 24 | K42: =I42/J42 -> 1.5 | L42: =J42/H42*100 -> 7 | M42: HS + pGCA
A43: Proband_041 | B43: 359 | C43: 30 | D43: 11 | E43: =C43/D43 -> 2.7 | F43: =D43/B43*100 -> 3 | G43: HS + pGCA | H43: NP | I43: NP | J43: NP | K43: - | L43: - | M43: -
A44: Proband_042 | B44: 400 | C44: 0 | D44: 0 | E44: - | F44: - | G44: SCO | H44: 400 | I44: 0 | J44: 0 | K44: - | L44: - | M44: SCO
A45: Proband_043 | B45: 379 | C45: 21 | D45: 1 | E45: =C45/D45 -> 21.0 | F45: =D45/B45*100 -> 0.3 | G45: HS + pGCA | H45: NP | I45: NP | J45: NP | K45: - | L45: - | M45: -
A46: Proband_044 | B46: 388 | C46: 9 | D46: 3 | E46: =C46/D46 -> 3.0 | F46: =D46/B46*100 -> 1 | G46: HS | H46: NP | I46: NP | J46: NP | K46: - | L46: - | M46: -
A47: Proband_045 | B47: NP | C47: NP | D47: NP | E47: - | F47: - | G47: - | H47: 400 | I47: 0 | J47: 0 | K47: - | L47: - | M47: SCO
A48: Proband_046 | B48: 412 | C48: 6 | D48: 0 | E48: - | F48: - | G48: SCO/minimal GCA | H48: 199 | I48: 80 | J48: 124 | K48: 0.6 | L48: =J48/H48*100 -> 62 | M48: CS
A49: Proband_047 | B49: 400 | C49: 0 | D49: 0 | E49: - | F49: - | G49: SCO | H49: 400 | I49: 0 | J49: 0 | K49: - | L49: - | M49: SCO
A50: Proband_048 | B50: 387 | C50: 10 | D50: 4 | E50: 2.5 | F50: =D50/B50*100 -> 1 | G50: HS | H50: 396 | I50: 3 | J50: 1 | K50: 3 | L50: =J50/H50*100 -> 0 | M50: HS
A51: Proband_053 | B51: NP | C51: NP | D51: NP | E51: - | F51: - | G51: - | H51: 367 | I51: 20 | J51: 17 | K51: 1.2 | L51: 5 | M51: HS + pGCA
A52: Proband_059 | B52: 400 | C52: 0 | D52: 0 | E52: - | F52: - | G52: SCO | H52: 400 | I52: 0 | J52: 0 | K52: - | L52: - | M52: SCO
A53: Proband_060 | B53: NA | C53: NA | D53: NA | E53: - | F53: - | G53: - | H53: NA | I53: NA | J53: NA | K53: - | L53: - | M53: -
A54: Proband_063 | B54: 400 | C54: 0 | D54: 0 | E54: - | F54: - | G54: SCO | H54: 394 | I54: 5 | J54: 2 | K54: 2.5 | L54: 1 | M54: HS
A55: Proband_065 | B55: 400 | C55: 0 | D55: 0 | E55: - | F55: - | G55: SCO | H55: 400 | I55: 0 | J55: 0 | K55: - | L55: - | M55: SCO
A56: Proband_069 | B56: NA | C56: NA | D56: NA | E56: - | F56: - | G56: - | H56: NA | I56: NA | J56: NA | K56: - | L56: - | M56: -
A57: Proband_070 | B57: NA | C57: NA | D57: NA | E57: - | F57: - | G57: - | H57: NA | I57: NA | J57: NA | K57: - | L57: - | M57: -
A58: Proband_077 | B58: 371 | C58: 21 | D58: 8 | E58: =C58/D58 -> 2.6 | F58: =D58/B58*100 -> 2 | G58: HS + pGCA | H58: NP | I58: NP | J58: NP | K58: - | L58: - | M58: -
A59: Proband_079 | B59: NP | C59: NP | D59: NP | E59: - | F59: - | G59: - | H59: 399 | I59: 1 | J59: 0 | K59: - | L59: - | M59: SCO/minimal GCA
A60: Proband_083 | B60: 130 | C60: 143 | D60: 127 | E60: 1.1 | F60: 98 | G60: pGCA | H60: 143 | I60: 147 | J60: 111 | K60: 1.3 | L60: 78 | M60: pGCA
A61: Proband_086 | B61: 365 | C61: 15 | D61: 20 | E61: =C61/D61 -> 0.8 | F61: =D61/B61*100 -> 5 | G61: HS + pGCA | H61: 220 | I61: 29 | J61: 29 | K61: =I61/J61 -> 1.0 | L61: =J61/H61*100 -> 13 | M61: HS + pGCA
A62: Proband_089 | B62: 400 | C62: 0 | D62: 0 | E62: - | F62: - | G62: SCO | H62: 397 | I62: 3 | J62: 0 | K62: - | L62: - | M62: SCO/minimal GCA
A63: Proband_090 | B63: NA | C63: NA | D63: NA | E63: - | F63: - | G63: NA | H63: NA | I63: NA | J63: NA | K63: - | L63: - | M63: -
A64: Proband_092 | B64: 400 | C64: 0 | D64: 0 | E64: - | F64: - | G64: SCO | H64: 400 | I64: 0 | J64: 0 | K64: - | L64: - | M64: SCO
A65: Proband_095 | B65: NP | C65: NP | D65: NP | E65: - | F65: - | G65: - | H65: 281 | I65: 58 | J65: 61 | K65: 1 | L65: 22 | M65: pGCA
A66: Proband_096 | B66: 390 | C66: 8 | D66: 2 | E66: 4 | F66: 1 | G66: HS | H66: 380 | I66: 13 | J66: 7 | K66: 1.9 | L66: 2 | M66: HS
A67: Proband_097 | B67: 189 | C67: 69 | D67: 143 | E67: =C67/D67 -> 0.5 | F67: =D67/B67*100 -> 76 | G67: CS | H67: NP | I67: NP | J67: NP | K67: - | L67: - | M67: -
A68: Proband_106 | B68: NA | C68: NA | D68: NA | E68: - | F68: - | G68: NA | H68: NA | I68: NA | J68: NA | K68: - | L68: - | M68: -
A69: Proband_115 | B69: 166 | C69: 66 | D69: 168 | E69: 0.4 | F69: 101 | G69: CS | H69: 137 | I69: 93 | J69: 170 | K69: 0.5 | L69: 124 | M69: CS
A70: Proband_121 | B70: NP | C70: NP | D70: NP | E70: - | F70: - | G70: - | H70: 262 | I70: 62 | J70: 76 | K70: =I70/J70 -> 0.8 | L70: =J70/H70*100 -> 29 | M70: pGCA
A71: Proband_122 | B71: NP | C71: NP | D71: NP | E71: - | F71: - | G71: - | H71: 270 | I71: 130 | J71: 0 | K71: - | L71: - | M71: GCA
A72: Proband_123 | B72: 311 | C72: 70 | D72: 19 | E72: =C72/D72 -> 3.7 | F72: =D72/B72*100 -> 6 | G72: HS + pGCA | H72: NP | I72: NP | J72: NP | K72: - | L72: - | M72: -
A73: Proband_128 | B73: 220 | C73: 117 | D73: 63 | E73: 1.9 | F73: 29 | G73: pGCA | H73: 309 | I73: 51 | J73: 40 | K73: 1.3 | L73: 13 | M73: HS + pGCA
A74: Proband_129 | B74: 400 | C74: 0 | D74: 0 | E74: - | F74: - | G74: SCO | H74: NA | I74: NA | J74: NA | K74: - | L74: - | M74: -
A75: Proband_131 | B75: 367 | C75: 19 | D75: 14 | E75: 1.4 | F75: 4 | G75: HS | H75: 400 | I75: 0 | J75: 0 | K75: - | L75: - | M75: SCO
A76: Proband_132 | B76: 339 | C76: 40 | D76: 21 | E76: 1.9 | F76: 6 | G76: HS + pGCA | H76: 394 | I76: 4 | J76: 2 | K76: 2 | L76: 1 | M76: HS
A77: Proband_134 | B77: 377 | C77: 4 | D77: 19 | E77: =C77/D77 -> 0.2 | F77: =D77/B77*100 -> 5 | G77: HS | H77: 383 | I77: 4 | J77: 14 | K77: =I77/J77 -> 0.3 | L77: =J77/H77*100 -> 4 | M77: HS
A78: Proband_137 | B78: 388 | C78: 12 | D78: 0 | E78: - | F78: - | G78: SCO/minimal GCA | H78: 390 | I78: 13 | J78: 0 | K78: - | L78: - | M78: SCO/minimal GCA
A79: Proband_138 | B79: NP | C79: NP | D79: NP | E79: - | F79: - | G79: - | H79: 180 | I79: 35 | J79: 185 | K79: =I79/J79 -> 0.2 | L79: =J79/H79*100 -> 103 | M79: CS
A80: Proband_140 | B80: 365 | C80: 25 | D80: 10 | E80: =C80/D80 -> 2.5 | F80: =D80/B80*100 -> 3 | G80: HS + pGCA | H80: 380 | I80: 12 | J80: 8 | K80: =I80/J80 -> 1.5 | L80: =J80/H80*100 -> 2 | M80: HS
A81: Proband_141 | B81: 264 | C81: 58 | D81: 78 | E81: =C81/D81 -> 0.7 | F81: =D81/B81*100 -> 30 | G81: CS | H81: NA | I81: NA | J81: NA | K81: - | L81: - | M81: -
A82: Proband_142 | B82: 321 | C82: 15 | D82: 64 | E82: =C82/D82 -> 0.2 | F82: =D82/B82*100 -> 20 | G82: HS | H82: NA | I82: NA | J82: NA | K82: - | L82: - | M82: -
A83: Proband_143 | B83: 400 | C83: 0 | D83: 0 | E83: - | F83: - | G83: SCO | H83: 400 | I83: 0 | J83: 0 | K83: - | L83: - | M83: SCO
A84: Proband_144 | B84: 389 | C84: 8 | D84: 3 | E84: 2.7 | F84: 1 | G84: HS | H84: 375 | I84: 13 | J84: 12 | K84: 1.1 | L84: 3 | M84: HS + pGCA
A85: Proband_148 | B85: 400 | C85: 0 | D85: 0 | E85: - | F85: - | G85: SCO | H85: 400 | I85: 0 | J85: 0 | K85: - | L85: - | M85: SCO
A86: Proband_149 | B86: NA | C86: NA | D86: NA | E86: - | F86: - | G86: - | H86: NA | I86: NA | J86: NA | K86: - | L86: - | M86: -
A87: Proband_150 | B87: 398 | C87: 2 | D87: 0 | E87: - | F87: - | G87: SCO/minimal GCA | H87: 399 | I87: 1 | J87: 0 | K87: - | L87: - | M87: SCO/minimal GCA
A88: Proband_151 | B88: 394 | C88: 6 | D88: 0 | E88: - | F88: - | G88: SCO/minimal GCA | H88: 396 | I88: 4 | J88: 0 | K88: - | L88: - | M88: SCO/minimal GCA
A89: Proband_152 | B89: 187 | C89: 107 | D89: 108 | E89: 1 | F89: 58 | G89: CS, spermatid morphology aberrant | H89: 245 | I89: 54 | J89: 103 | K89: 0.5 | L89: 42 | M89: CS
A90: Proband_153 | B90: 400 | C90: 0 | D90: 0 | E90: - | F90: - | G90: SCO | H90: 390 | I90: 10 | J90: 0 | K90: - | L90: - | M90: SCO/minimal GCA
A91: Proband_155 | B91: 400 | C91: 0 | D91: 0 | E91: - | F91: - | G91: SCO | H91: 400 | I91: 0 | J91: 0 | K91: - | L91: - | M91: SCO
A92: Proband_156 | B92: 395 | C92: 4 | D92: 1 | E92: =C92/D92 -> 4.0 | F92: =D92/B92*100 -> 0.3 | G92: HS | H92: 395 | I92: 5 | J92: 0 | K92: - | L92: - | M92: SCO/minimal GCA
A93: Proband_157 | B93: 395 | C93: 5 | D93: 0 | E93: - | F93: - | G93: SCO/minimal GCA | H93: 394 | I93: 6 | J93: 0 | K93: - | L93: - | M93: SCO/minimal GCA
A94: Proband_159 | B94: NA | C94: NA | D94: NA | E94: - | F94: - | G94: - | H94: NA | I94: NA | J94: NA | K94: - | L94: - | M94: -
A95: Proband_160 | B95: 400 | C95: 0 | D95: 0 | E95: - | F95: - | G95: SCO | H95: 395 | I95: 5 | J95: 0 | K95: - | L95: - | M95: SCO/minimal GCA
A96: Proband_161 | B96: 400 | C96: 0 | D96: 0 | E96: - | F96: - | G96: SCO | H96: 400 | I96: 0 | J96: 0 | K96: - | L96: - | M96: SCO
A97: Proband_162 | B97: NA | C97: NA | D97: NA | E97: - | F97: - | G97: - | H97: 263 | I97: 47 | J97: 90 | K97: =I97/J97 -> 0.5 | L97: =J97/H97*100 -> 34 | M97: CS
A98: Proband_163 | B98: 394 | C98: 5 | D98: 4 | E98: =C98/D98 -> 1.3 | F98: =D98/B98*100 -> 1 | G98: HS | H98: 375 | I98: 10 | J98: 11 | K98: =I98/J98 -> 0.9 | L98: =J98/H98*100 -> 3 | M98: HS
A99: Proband_164 | B99: 388 | C99: 7 | D99: 7 | E99: =C99/D99 -> 1.0 | F99: =D99/B99*100 -> 2 | G99: HS | H99: 391 | I99: 5 | J99: 4 | K99: =I99/J99 -> 1.3 | L99: =J99/H99*100 -> 1 | M99: HS
A100: Proband_165 | B100: NP | C100: NP | D100: NP | E100: - | F100: - | G100: - | H100: 337 | I100: 47 | J100: 17 | K100: =I100/J100 -> 2.8 | L100: =J100/H100*100 -> 5 | M100: HS + pGCA
A101: Proband_166 | B101: 400 | C101: 0 | D101: 0 | E101: - | F101: - | G101: SCO | H101: 400 | I101: 0 | J101: 0 | K101: - | L101: - | M101: SCO
A102: Proband_167 | B102: 239 | C102: 34 | D102: 130 | E102: =C102/D102 -> 0.3 | F102: =D102/B102*100 -> 54 | G102: CS | H102: 357 | I102: 10 | J102: 33 | K102: =I102/J102 -> 0.3 | L102: =J102/H102*100 -> 9 | M102: HS
A103: Proband_168 | B103: 220 | C103: 43 | D103: 140 | E103: =C103/D103 -> 0.3 | F103: =D103/B103*100 -> 64 | G103: CS | H103: 378 | I103: 6 | J103: 16 | K103: =I103/J103 -> 0.4 | L103: =J103/H103*100 -> 4 | M103: HS
A104: Proband_169 | B104: 290 | C104: 95 | D104: 15 | E104: =C104/D104 -> 6.3 | F104: =D104/B104*100 -> 5 | G104: HS + pGCA | H104: 306 | I104: 56 | J104: 38 | K104: =I104/J104 -> 1.5 | L104: =J104/H104*100 -> 12 | M104: HS + pGCA
